{"text_format":"1","workbook":"xlsx","n_sheets":14,"sheets":["Inicio","datos","Resumen","Carta Gantt","1.- Trabajos de Auditoría","2.- Trabajos de Consultoría","3.- Trabajos de Seguimiento","4.- Trabajos Rutinarios","5.- Trabajos Dirección","Calculo de horas disponibles","Detalle Capacitaciones","6.- Resumen de horas estimadas","Instituciones","formato_resumen"],"not_rendered":{"charts":0,"images":0,"macros":1,"external_links":1,"defined_names":105,"comments":7,"pivot_tables":0},"unopened":[],"bounds":{"document_bytes":16777216,"sheet_cells":100000,"rows_first":2000,"rows_last":500,"rows_between":2000,"halvings":0,"cell_chars":16384,"cell_head_chars":4096},"cells_cut":0,"cells_raw":0,"read":"whole","date_system":"1900"}

{"sheet":"Inicio","index":0,"n_rows":23,"n_cols":5,"rows_kept":23,"cut":false,"hidden":false,"merged":[[13,1,13,4],[2,1,2,4]]}
[1]
[]
[null,"Plan Anual de Auditoría"]
[null,"Ministerio",null,"Año planificado"]
[null,"Servicio",null,"Versión enviada a CAIGG"]
[null,"Servicio dependiente",null,"Fecha de Emisión:"]
[null,"Región:",null,"Código del Plan Anual de Auditoría:"]
[]
[]
[null,"Formulado Por:",null,"Fecha formulación"]
[null,"Revisado/Validado por Jefe de Auditoría Interna",null,"Fecha revisión/validación"]
[null,"Aprobación del Jefe Superior del Servicio",null,"Fecha  aprobación"]
[]
[null,"Instrucciones de uso del archivo "]
[null,"Pasos","Instrucción","Acción","Operación realizada"]
[null,"PASO 1","Asegurese de haber habilitado las macros al abrir este archivo.","Habilitar Macros en MS Excel"]
[null,"PASO 2","Complete los datos de esta hoja, al menos hasta la fila 7 (Excepto el Código del Plan)","Ingreso de datos manual"]
[null,"PASO 3","Complete los datos solicitados en las hojas: 1.- Actividades de Aseguramiento, 2.- Actividades de Consultoria, 3.- Actividades de Seguimiento, 4.- Actividades Rutinarias, 5.- Solicitudes Dirección.","Ingreso de datos manual"]
[null,"PASO 4","Para identificar de forma unica cada actividad debe ingresar todas las actividades en las  5 hojas de Actividades según lo indicado en el paso anterior y a continuación presionar el botón Generar Codigos para Actividades."]
[null,"PASO 5","Para completar las hojas Resumen y Resumen de horas asegurese de haber ingresado previamente todas las actividades  y de generar los  codigos con el paso anterior. Luego presione el botón Completar Hoja Resumen."]
[null,"PASO 6","Para completar automaticamente los datos de la Carta Gantt presione el botón Completar datos de Carta Gantt."]
[null,"PASO 7","Si requiere ingresar más datos o correguir datos ya ingresados vuelva a ejecutar desde el PASO 4","Repetir desde PASO 5"]
[null,"PASO 8","Antes de enviar el archivo aprobado al CAIGG se requiere generar el Codigo de Identificación de su Plan de Auditoría. Asegurese de  haber completado todos los datos de esta hoja. Luego presione el boton Generar Codigo de Plan."]

{"sheet":"datos","index":1,"n_rows":404,"n_cols":18,"rows_kept":404,"cut":false,"hidden":true,"merged":[]}
["Validacion","Tipo","PROCESOS TRANSVERSALES","Meses","año","version","Frecuencia","tipo",null,"Servicio","Acronimo","Proveedor Capacitación ",null,null,null,null,null,"Numero informes"]
[null,"Gubernamental","Subsidios a privados de fomento","Enero",2014,"01","Semanal","Consultoria",null,"CENTRO DE INFORMACIÓN DE RECURSOS NATURALES","CIREN","CAIGG",null,"Proveedor Capacitación (CAIGG-CGR- Otros)",null,"SI",null,1]
[null,"Ministerial","Subsidios a privados social","Febrero",2015,"02","Quincenal","Aseguramiento",null,"COMISIÓN NACIONAL DE RIEGO","CNR","CGR","Institucional",null,null,"NO",null,2]
[null,"Institucional","Subsidios a privados asistencial","Marzo",2016,"03","Mensual","Seguimiento",null,"CORPORACIÓN NACIONAL FORESTAL","CONAF","OTROS",null,null,null,null,null,3]
[null,null,"Transferencias a/de otras entidades públicas","Abril",2017,"04","Trimestral","Otro",null,"FUNDACIÓN DE COMUNICACIÓN, CAPACITACIÓN Y CULTURA DEL AGRO","FUCOA",null,null,null,null,null,null,4]
[null,null,"Servicios de atención al ciudadano –contraprestación","Mayo",2018,"05","Semestral",null,null,"FUNDACIÓN PARA LA INNOVACIÓN AGRARIA","FIA",null,null,null,null,null,null,5]
[null,null,"Servicios de atención social/ previsional /salud","Junio",null,"06","Anual",null,null,"INSTITUTO DE DESARROLLO AGROPECUARIO","INDAP",null,null,null,null,null,null,6]
[null,null,"Créditos - recuperación prestamos","Julio",null,"07",null,null,null,"INSTITUTO FORESTAL","INFOR",null,null,null,null,null,null,7]
[null,null,"Almacenamiento y distribución","Agosto",null,"08",null,null,null,"INSTITUTO INVESTIGACIONES AGROPECUARIAS","INIA",null,null,null,null,null,null,8]
[null,null,"Infraestructura","Septiembre",null,"09",null,null,null,"OFICINA DE ESTUDIOS Y POLÍTICAS AGRARIAS","ODEPA",null,null,null,null,null,null,9]
[null,null,"Asesoría a  infraestructura","Octubre",null,null,null,null,null,"SERVICIO AGRÍCOLA Y GANADERO","SAG",null,null,null,null,null,null,10]
[null,null,"Estudios para marco cultural","Noviembre",null,null,null,null,null,"SUBSECRETARÍA DE AGRICULTURA","SUBAGRI",null,null,null,null,null,null,11]
[null,null,"Estudios para regulaciones, normativa y fijación tarifaria","Diciembre",null,null,null,null,null,"SUBSECRETARÍA DE BIENES NACIONALES","SUBBN",null,null,null,null,null,null,12]
[null,null,"Administración de bienes estratégicos",null,null,null,null,null,null,"CONSEJO NACIONAL DE LA CULTURA Y LAS ARTES","CNCA",null,null,null,null,null,null,13]
[null,null,"Otorgamiento y/o reconocimiento de derechos",null,null,null,null,null,null,"ACADEMIA NACIONAL DE ESTUDIOS POLÍTICOS Y ESTRATÉGICOS","ANEPE",null,null,null,null,null,null,14]
[null,null,"Mejoramiento de la gestión",null,null,null,null,null,null,"CAJA DE PREVISIÓN DE LA DEFENSA NACIONAL","CAPREDENA",null,null,null,null,null,null,15]
[null,null,"Estudios e investigaciones",null,null,null,null,null,null,"DEFENSA CIVIL DE CHILE","DCIVIL",null,null,null,null,null,null,16]
[null,null,"Legal estratégico",null,null,null,null,null,null,"DIRECCIÓN GENERAL DE AERONÁUTICA CIVIL","DGAC",null,null,null,null,null,null,17]
[null,null,"Control de outsourcing",null,null,null,null,null,null,"DIRECCIÓN GENERAL DE MOVILIZACIÓN NACIONAL","DGMN",null,null,null,null,null,null,18]
[null,null,"Seguridad y Control de Personas y/o  Recintos",null,null,null,null,null,null,"ESTADO MAYOR CONJUNTO","EMC",null,null,null,null,null,null,19]
[null,null,"Seguridad del transporte",null,null,null,null,null,null,"SUBSECRETARÍA DE DEFENSA","SUBDEF",null,null,null,null,null,null,20]
[null,null,"Calificación ambiental",null,null,null,null,null,null,"SUBSECRETARÍA PARA LAS FUERZAS ARMADAS","SUBFFAA",null,null,null,null,null,null,21]
[null,null,"Producción de bienes materiales",null,null,null,null,null,null,"COMITÉ DE INVERSIONES EXTRANJERAS","CIE",null,null,null,null,null,null,22]
[null,null,"Comercialización",null,null,null,null,null,null,"CORPORACIÓN DE FOMENTO DE LA PRODUCCIÓN","CORFO",null,null,null,null,null,null,23]
[null,null,"Coordinación de Acciones de Emergencia",null,null,null,null,null,null,"FISCALÍA NACIONAL ECONÓMICA","FNE",null,null,null,null,null,null,24]
[null,null,"Planificación presupuestaria",null,null,null,null,null,null,"INSTITUTO NACIONAL DE ESTADÍSTICAS","INE",null,null,null,null,null,null,25]
[null,null,"Planificación estratégica",null,null,null,null,null,null,"INSTITUTO NACIONAL DE PROPIEDAD INDUSTRIAL","INAPI",null,null,null,null,null,null,26]
[null,null,"Coordinación entre  instancias",null,null,null,null,null,null,"SERVICIO DE COOPERACIÓN TÉCNICA","SERCOTEC",null,null,null,null,null,null,27]
[null,null,"Gobierno Electrónico",null,null,null,null,null,null,"SERVICIO NACIONAL DE PESCA Y ACUICULTURA","SERNAPESCA",null,null,null,null,null,null,28]
[null,null,"Iniciativas de inversión",null,null,null,null,null,null,"SERVICIO NACIONAL DE TURISMO","SERNATUR",null,null,null,null,null,null,29]
[null,null,"Mercado financiero",null,null,null,null,null,null,"SERVICIO NACIONAL DEL CONSUMIDOR","SERNAC",null,null,null,null,null,null,30]
[null,null,"Sistemas de información administrativos ",null,null,null,null,null,null,"SUBSECRETARÍA DE ECONOMÍA Y EMPRESAS DE MENOR TAMAÑO","SUBECON",null,null,null,null,null,null,31]
[null,null,"Sistemas informáticos",null,null,null,null,null,null,"SUBSECRETARÍA DE PESCA Y ACUICULTURA","SUBPESCA",null,null,null,null,null,null,32]
[null,null,"Fiscalización",null,null,null,null,null,null,"SUBSECRETARÍA DE TURISMO","SUBTUR",null,null,null,null,null,null,33]
[null,null,"Evaluación y control de substancias",null,null,null,null,null,null,"SUPERINTENDENCIA DE INSOLVENCIA Y REEMPRENDIMIENTO","SPINSOL",null,null,null,null,null,null,34]
[null,null,"Control de gestión ",null,null,null,null,null,null,"AGENCIA DE CALIDAD ","AGCAL",null,null,null,null,null,null,35]
[null,null,"Financiero",null,null,null,null,null,null,"COMISIÓN NACIONAL DE INVESTIGACIÓN CIENTÍFICA Y TECNOLÓGICA","CONICYT",null,null,null,null,null,null,36]
[null,null,"Legal",null,null,null,null,null,null,"CONSEJO NACIONAL DE EDUCACIÓN","CNED",null,null,null,null,null,null,37]
[null,null,"Comunicaciones",null,null,null,null,null,null,"DIRECCIÓN DE BIBLIOTECAS, ARCHIVOS Y MUSEOS","DIBAM",null,null,null,null,null,null,38]
[null,null,"Adquisiciones y abastecimiento",null,null,null,null,null,null,"JUNTA NACIONAL DE AUXILIO ESCOLAR Y BECAS","JUNAEB",null,null,null,null,null,null,39]
[null,null,"Recursos humanos  ",null,null,null,null,null,null,"JUNTA NACIONAL DE JARDINES INFANTILES","JUNJI",null,null,null,null,null,null,40]
[null,null,"Administración/mantenimiento recursos ",null,null,null,null,null,null,"SUBSECRETARÍA DE EDUCACIÓN","SUBED",null,null,null,null,null,null,41]
[null,null,"Gestión documental",null,null,null,null,null,null,"SUPERINTENDENCIA DE EDUCACIÓN","SPED",null,null,null,null,null,null,42]
[null,null,"Auditoría Interna",null,null,null,null,null,null,"COMISIÓN CHILENA DE ENERGÍA NUCLEAR","CCHEN",null,null,null,null,null,null,43]
[null,null,"Recursos materiales",null,null,null,null,null,null,"COMISIÓN NACIONAL DE ENERGÍA","CNE",null,null,null,null,null,null,44]
[null,null,null,null,null,null,null,null,null,"SUBSECRETARÍA DE ENERGÍA","SUBENER",null,null,null,null,null,null,45]
[null,null,null,null,null,null,null,null,null,"SUPERINTENDENCIA DE ELECTRICIDAD Y COMBUSTIBLES","SEC",null,null,null,null,null,null,46]
[null,null,null,null,null,null,null,null,null,"CONSEJO DE DEFENSA DEL ESTADO","CDE",null,null,null,null,null,null,47]
[null,null,null,null,null,null,null,null,null,"DIRECCIÓN DE COMPRAS Y CONTRATACIÓN PÚBLICA","DCCP",null,null,null,null,null,null,48]
[null,null,null,null,null,null,null,null,null,"DIRECCIÓN DE PRESUPUESTOS","DIPRES",null,null,null,null,null,null,49]
[null,null,null,null,null,null,null,null,null,"DIRECCIÓN NACIONAL DEL SERVICIO CIVIL","SERVICIOCIVIL",null,null,null,null,null,null,50]
[null,null,null,null,null,null,null,null,null,"SERVICIO DE IMPUESTOS INTERNOS","SII"]
[null,null,null,null,null,null,null,null,null,"SERVICIO DE TESORERÍAS","TESORERIA"]
[null,null,null,null,null,null,null,null,null,"SERVICIO NACIONAL DE ADUANAS","ADUANAS"]
[null,null,null,null,null,null,null,null,null,"SUBSECRETARÍA DE HACIENDA","SUBHAC"]
[null,null,null,null,null,null,null,null,null,"SUPERINTENDENCIA DE BANCOS E INSTITUCIONES FINANCIERAS","SBIF"]
[null,null,null,null,null,null,null,null,null,"SUPERINTENDENCIA DE CASINOS DE JUEGO","SCAJ"]
[null,null,null,null,null,null,null,null,null,"SUPERINTENDENCIA DE VALORES Y SEGUROS","SVS"]
[null,null,null,null,null,null,null,null,null,"UNIDAD ADMINISTRADORA DE LOS TRIBUNALES TRIBUTARIOS Y ADUANEROS","TTA"]
[null,null,null,null,null,null,null,null,null,"UNIDAD DE ANÁLISIS FINANCIERO","UAF"]
[null,null,null,null,null,null,null,null,null,"DIRECCIÓN DE PREVISIÓN DE CARABINEROS DE CHILE","DIPRECA"]
[null,null,null,null,null,null,null,null,null,"GOBIERNO REGIONAL DE ANTOFAGASTA","GOREANTOF"]
[null,null,null,null,null,null,null,null,null,"GOBIERNO REGIONAL DE ARICA Y PARINACOTA","GOREARICA"]
[null,null,null,null,null,null,null,null,null,"GOBIERNO REGIONAL DE ATACAMA","GOREATACAMA"]
[null,null,null,null,null,null,null,null,null,"GOBIERNO REGIONAL DE AYSÉN","GOREAYSEN"]
[null,null,null,null,null,null,null,null,null,"GOBIERNO REGIONAL DE BÍO-BÍO","GOREBIOBIO"]
[null,null,null,null,null,null,null,null,null,"GOBIERNO REGIONAL DE COQUIMBO","GORECOQ"]
[null,null,null,null,null,null,null,null,null,"GOBIERNO REGIONAL DE LA ARAUCANÍA","GOREARAUC"]
[null,null,null,null,null,null,null,null,null,"GOBIERNO REGIONAL DE LIBERTADOR BERNARDO O´HIGGINS","GOREOHIG"]
[null,null,null,null,null,null,null,null,null,"GOBIERNO REGIONAL DE LOS LAGOS","GORELAGOS"]
[null,null,null,null,null,null,null,null,null,"GOBIERNO REGIONAL DE LOS RÍOS","GORERIOS"]
[null,null,null,null,null,null,null,null,null,"GOBIERNO REGIONAL DE MAGALLANES Y ANTÁRTICA CHILENA","GOREMAG"]
[null,null,null,null,null,null,null,null,null,"GOBIERNO REGIONAL DE MAULE","GOREMAULE"]
[null,null,null,null,null,null,null,null,null,"GOBIERNO REGIONAL DE TARAPACÁ","GORETARAP"]
[null,null,null,null,null,null,null,null,null,"GOBIERNO REGIONAL DE VALPARAÍSO","GOREVAL"]
[null,null,null,null,null,null,null,null,null,"GOBIERNO REGIONAL METROPOLITANO DE SANTIAGO","GORERM"]
[null,null,null,null,null,null,null,null,null,"OFICINA NACIONAL DE EMERGENCIA","ONEMI"]
[null,null,null,null,null,null,null,null,null,"SERVICIO ELECTORAL","SERVEL"]
[null,null,null,null,null,null,null,null,null,"SERVICIO NACIONAL PARA LA PREVENCIÓN Y REHABILITACIÓN DEL CONSUMO DE DROGAS Y ALCOHOL","SENDA"]
[null,null,null,null,null,null,null,null,null,"SUBSECRETARÍA DE DESARROLLO REGIONAL Y ADMINISTRATIVO","SUBDERE"]
[null,null,null,null,null,null,null,null,null,"SUBSECRETARÍA DEL INTERIOR","SUBINTERIOR"]
[null,null,null,null,null,null,null,null,null,"SUBSECRETARÍA DE PREVENCION DEL DELITO","SUBPD"]
[null,null,null,null,null,null,null,null,null,"CORPORACIÓN DE ASISTENCIA JUDICIAL BÍO-BÍO","CAJBIOBIO"]
[null,null,null,null,null,null,null,null,null,"CORPORACIÓN DE ASISTENCIA JUDICIAL REGIÓN METROPOLITANA","CAJRM"]
[null,null,null,null,null,null,null,null,null,"CORPORACIÓN DE ASISTENCIA JUDICIAL TARAPACÁ Y ANTOFAGASTA","CAJTARAPACA"]
[null,null,null,null,null,null,null,null,null,"CORPORACIÓN DE ASISTENCIA JUDICIAL VALPARAÍSO","CAJVAL"]
[null,null,null,null,null,null,null,null,null,"DEFENSORÍA PENAL PÚBLICA","DPP"]
[null,null,null,null,null,null,null,null,null,"GENDARMERÍA DE CHILE","GENDARMERIA"]
[null,null,null,null,null,null,null,null,null,"SERVICIO DE REGISTRO CIVIL E IDENTIFICACIÓN","SRCEI"]
[null,null,null,null,null,null,null,null,null,"SERVICIO MÉDICO LEGAL","SML"]
[null,null,null,null,null,null,null,null,null,"SERVICIO NACIONAL DE MENORES","SENAME"]
[null,null,null,null,null,null,null,null,null,"SUBSECRETARÍA DE JUSTICIA","SUBJUS"]
[null,null,null,null,null,null,null,null,null,"SERVICIO DE EVALUACIÓN AMBIENTAL","SEA"]
[null,null,null,null,null,null,null,null,null,"SUBSECRETARÍA DEL MEDIO AMBIENTE","SUBMA"]
[null,null,null,null,null,null,null,null,null,"SUPERINTENDENCIA DEL MEDIO AMBIENTE","SMA"]
[null,null,null,null,null,null,null,null,null,"COMISIÓN CHILENA DEL COBRE","COCHILCO"]
[null,null,null,null,null,null,null,null,null,"SERVICIO NACIONAL DE GEOLOGÍA Y MINERÍA","SERNAGEOMIN"]
[null,null,null,null,null,null,null,null,null,"SUBSECRETARÍA DE MINERÍA","SUBMIN"]
[null,null,null,null,null,null,null,null,null,"DIRECCIÓN DE AEROPUERTOS","AEROPUERTOS"]
[null,null,null,null,null,null,null,null,null,"DIRECCIÓN DE ARQUITECTURA","ARQUITECTURA"]
[null,null,null,null,null,null,null,null,null,"DIRECCIÓN DE CONTABILIDAD Y FINANZAS","DCFMOP"]
[null,null,null,null,null,null,null,null,null,"DIRECCIÓN DE OBRAS HIDRÁULICAS","DOH"]
[null,null,null,null,null,null,null,null,null,"DIRECCIÓN DE OBRAS PORTUARIAS","DOP"]
[null,null,null,null,null,null,null,null,null,"DIRECCIÓN DE PLANEAMIENTO","DIRPLAN"]
[null,null,null,null,null,null,null,null,null,"DIRECCIÓN DE VIALIDAD","VIALIDAD"]
[null,null,null,null,null,null,null,null,null,"DIRECCIÓN GENERAL DE AGUAS","DGA"]
[null,null,null,null,null,null,null,null,null,"DIRECCIÓN GENERAL DE OBRAS PÚBLICAS","DGOP"]
[null,null,null,null,null,null,null,null,null,"FISCALÍA MINISTERIO DE OBRAS PUBLICAS","FISCMOP"]
[null,null,null,null,null,null,null,null,null,"INSTITUTO NACIONAL DE HIDRÁULICA","INH"]
[null,null,null,null,null,null,null,null,null,"SUBSECRETARÍA DE OBRAS PÚBLICAS","SUBOP"]
[null,null,null,null,null,null,null,null,null,"SUPERINTENDENCIA DE SERVICIOS SANITARIOS","SISS"]
[null,null,null,null,null,null,null,null,null,"CORPORACIÓN NACIONAL DE DESARROLLO INDÍGENA","CONADI"]
[null,null,null,null,null,null,null,null,null,"FONDO DE SOLIDARIDAD E INVERSIÓN SOCIAL","FOSIS"]
[null,null,null,null,null,null,null,null,null,"INSTITUTO NACIONAL DE LA JUVENTUD","INJUV"]
[null,null,null,null,null,null,null,null,null,"SERVICIO NACIONAL DE LA DISCAPACIDAD","SENADIS"]
[null,null,null,null,null,null,null,null,null,"SERVICIO NACIONAL DEL ADULTO MAYOR","SENAMA"]
[null,null,null,null,null,null,null,null,null,"SUBSECRETARÍA DE EVALUACIÓN SOCIAL","SUBES"]
[null,null,null,null,null,null,null,null,null,"SUBSECRETARÍA DE SERVICIOS SOCIALES","SUBSS"]
[null,null,null,null,null,null,null,null,null,"DIRECCIÓN ADMINISTRATIVA DE LA PRESIDENCIA","DIRADMPRES"]
[null,null,null,null,null,null,null,null,null,"AGENCIA DE COOPERACIÓN INTERNACIONAL DE CHILE ","AGCI"]
[null,null,null,null,null,null,null,null,null,"DIRECCIÓN DE FRONTERAS Y LIMITES DEL ESTADO ","DIFROL"]
[null,null,null,null,null,null,null,null,null,"DIRECCIÓN GENERAL DE RELACIONES ECONÓMICAS INTERNACIONALES ","DIRECON"]
[null,null,null,null,null,null,null,null,null,"INSTITUTO ANTÁRTICO CHILENO ","INACH"]
[null,null,null,null,null,null,null,null,null,"SUBSECRETARÍA DE RELACIONES EXTERIORES","SUBRREE"]
[null,null,null,null,null,null,null,null,null,"CENTRAL DE ABASTECIMIENTO DEL SISTEMA NACIONAL DE SERVICIOS DE SALUD","CENABAST"]
[null,null,null,null,null,null,null,null,null,"CENTRO DE REFERENCIA DE SALUD DE MAIPÚ","CRSMAIPU"]
[null,null,null,null,null,null,null,null,null,"CENTRO DE REFERENCIA DE SALUD DE PEÑALOLÉN CORDILLERA ORIENTE","CRSCORDILLERA"]
[null,null,null,null,null,null,null,null,null,"FONDO NACIONAL DE SALUD","FONASA"]
[null,null,null,null,null,null,null,null,null,"HOSPITAL PADRE ALBERTO HURTADO","HPHURTADO"]
[null,null,null,null,null,null,null,null,null,"INSTITUTO DE SALUD PÚBLICA DE CHILE","ISP"]
[null,null,null,null,null,null,null,null,null,"SERVICIO DE SALUD ACONCAGUA","SSACONCAGUA"]
[null,null,null,null,null,null,null,null,null,"SERVICIO DE SALUD ANTOFAGASTA","SSANTOFAGASTA"]
[null,null,null,null,null,null,null,null,null,"SERVICIO DE SALUD ARAUCANÍA NORTE","SSARAUCNORTE"]
[null,null,null,null,null,null,null,null,null,"SERVICIO DE SALUD ARAUCANÍA SUR","SSARAUCSUR"]
[null,null,null,null,null,null,null,null,null,"SERVICIO DE SALUD ARAUCO","SSARAUCO"]
[null,null,null,null,null,null,null,null,null,"SERVICIO DE SALUD ARICA","SSARICA"]
[null,null,null,null,null,null,null,null,null,"SERVICIO DE SALUD ATACAMA","SSATACAMA"]
[null,null,null,null,null,null,null,null,null,"SERVICIO DE SALUD AYSÉN","SSAYSEN"]
[null,null,null,null,null,null,null,null,null,"SERVICIO DE SALUD BERNARDO OHIGGINS","SSOHIGGINS"]
[null,null,null,null,null,null,null,null,null,"SERVICIO DE SALUD BÍO BÍO","SSBIOBIO"]
[null,null,null,null,null,null,null,null,null,"SERVICIO DE SALUD CHILOÉ","SSCHILOE"]
[null,null,null,null,null,null,null,null,null,"SERVICIO DE SALUD CONCEPCIÓN","SSCONCEPCION"]
[null,null,null,null,null,null,null,null,null,"SERVICIO DE SALUD COQUIMBO","SSCOQUIMBO"]
[null,null,null,null,null,null,null,null,null,"SERVICIO DE SALUD IQUIQUE","SSIQUIQUE"]
[null,null,null,null,null,null,null,null,null,"SERVICIO DE SALUD MAGALLANES","SSMAGALLANES"]
[null,null,null,null,null,null,null,null,null,"SERVICIO DE SALUD MAULE","SSMAULE"]
[null,null,null,null,null,null,null,null,null,"SERVICIO DE SALUD METROPOLITANO CENTRAL","SSMETRCENTRAL"]
[null,null,null,null,null,null,null,null,null,"SERVICIO DE SALUD METROPOLITANO NORTE","SSMETRNORTE"]
[null,null,null,null,null,null,null,null,null,"SERVICIO DE SALUD METROPOLITANO OCCIDENTE","SSMETROCC"]
[null,null,null,null,null,null,null,null,null,"SERVICIO DE SALUD METROPOLITANO ORIENTE","SSMETRORIENTE"]
[null,null,null,null,null,null,null,null,null,"SERVICIO DE SALUD METROPOLITANO SUR","SSMETRSUR"]
[null,null,null,null,null,null,null,null,null,"SERVICIO DE SALUD METROPOLITANO SUR ORIENTE","SSMETRSURORIENTE"]
[null,null,null,null,null,null,null,null,null,"SERVICIO DE SALUD ÑUBLE","SSÑUBLE"]
[null,null,null,null,null,null,null,null,null,"SERVICIO DE SALUD OSORNO","SSOSORNO"]
[null,null,null,null,null,null,null,null,null,"SERVICIO DE SALUD RELONCAVÍ","SSRELONC"]
[null,null,null,null,null,null,null,null,null,"SERVICIO DE SALUD TALCAHUANO","SSTALCAHUANO"]
[null,null,null,null,null,null,null,null,null,"SERVICIO DE SALUD VALDIVIA","SSVALDIVIA"]
[null,null,null,null,null,null,null,null,null,"SERVICIO DE SALUD VALPARAÍSO Y SAN ANTONIO","SSVALP"]
[null,null,null,null,null,null,null,null,null,"SERVICIO DE SALUD VIÑA DEL MAR Y QUILLOTA","SSVIÑA"]
[null,null,null,null,null,null,null,null,null,"SUBSECRETARÍA DE REDES ASISTENCIALES","SUBRA"]
[null,null,null,null,null,null,null,null,null,"SUBSECRETARÍA DE SALUD","SUBSALUD"]
[null,null,null,null,null,null,null,null,null,"SUPERINTENDENCIA DE SALUD","SPSALUD"]
[null,null,null,null,null,null,null,null,null,"CONSEJO NACIONAL DE TELEVISIÓN ","CNTV"]
[null,null,null,null,null,null,null,null,null,"SUBSECRETARÍA GENERAL DE GOBIERNO","SEGEGOB"]
[null,null,null,null,null,null,null,null,null,"SUBSECRETARÍA GENERAL DE LA PRESIDENCIA DE LA REPÚBLICA","SEGPRES"]
[null,null,null,null,null,null,null,null,null,"SERVICIO NACIONAL DE LA MUJER","SERNAM"]
[null,null,null,null,null,null,null,null,null,"DIRECCIÓN DEL TRABAJO ","DIRTRAB"]
[null,null,null,null,null,null,null,null,null,"DIRECCIÓN GENERAL DE CRÉDITO PRENDARIO ","DICREP"]
[null,null,null,null,null,null,null,null,null,"INSTITUTO DE PREVISIÓN SOCIAL ","IPS"]
[null,null,null,null,null,null,null,null,null,"INSTITUTO DE SEGURIDAD LABORAL ","ISL"]
[null,null,null,null,null,null,null,null,null,"SERVICIO NACIONAL DE CAPACITACIÓN Y EMPLEO ","SENCE"]
[null,null,null,null,null,null,null,null,null,"SUBSECRETARÍA DE PREVISIÓN SOCIAL ","SUBPREV"]
[null,null,null,null,null,null,null,null,null,"SUBSECRETARÍA DEL TRABAJO","SUBTRAB"]
[null,null,null,null,null,null,null,null,null,"SUPERINTENDENCIA DE PENSIONES ","SPENSIONES"]
[null,null,null,null,null,null,null,null,null,"SUPERINTENDENCIA DE SEGURIDAD SOCIAL ","SUSESO"]
[null,null,null,null,null,null,null,null,null,"JUNTA DE AERONÁUTICA CIVIL","JAC"]
[null,null,null,null,null,null,null,null,null,"SUBSECRETARÍA DE TELECOMUNICACIONES","SUBTEL"]
[null,null,null,null,null,null,null,null,null,"SUBSECRETARÍA DE TRANSPORTES","SUBTRANS"]
[null,null,null,null,null,null,null,null,null,"PARQUE METROPOLITANO DE SANTIAGO","PARQUEMET"]
[null,null,null,null,null,null,null,null,null,"SERVIU METROPOLITANO","SERVIURM"]
[null,null,null,null,null,null,null,null,null,"SERVIU REGIÓN I","SERVIUI"]
[null,null,null,null,null,null,null,null,null,"SERVIU REGIÓN II","SERVIUII"]
[null,null,null,null,null,null,null,null,null,"SERVIU REGIÓN III","SERVIUIII"]
[null,null,null,null,null,null,null,null,null,"SERVIU REGIÓN IV","SERVIUIV"]
[null,null,null,null,null,null,null,null,null,"SERVIU REGIÓN V","SERVIUV"]
[null,null,null,null,null,null,null,null,null,"SERVIU REGIÓN VI","SERVIUVI"]
[null,null,null,null,null,null,null,null,null,"SERVIU REGIÓN VII","SERVIUVII"]
[null,null,null,null,null,null,null,null,null,"SERVIU REGIÓN VIII","SERVIUVIII"]
[null,null,null,null,null,null,null,null,null,"SERVIU REGIÓN IX","SERVIUIX"]
[null,null,null,null,null,null,null,null,null,"SERVIU REGIÓN X","SERVIUX"]
[null,null,null,null,null,null,null,null,null,"SERVIU REGIÓN XI","SERVIUXI"]
[null,null,null,null,null,null,null,null,null,"SERVIU REGIÓN XII","SERVIUXII"]
[null,null,null,null,null,null,null,null,null,"SERVIU REGIÓN XIV","SERVIUXIV"]
[null,null,null,null,null,null,null,null,null,"SERVIU REGIÓN XV","SERVIUXV"]
[null,null,null,null,null,null,null,null,null,"SUBSECRETARÍA DE VIVIENDA Y URBANISMO","SUBVIVIVIENDA"]
[null,null,null,null,null,null,null,null,null,"INSTITUTO NACIONAL DE DEPORTES ","IND"]
[null,null,null,null,null,null,null,null,null,"SUBSECRETARÍA DE DEPORTES","SUBDEPORTES"]
[null,null,null,null,null,null,null,null,null,"CESFAM CORDILLERA ANDINA","CFCORDILLERA"]
[null,null,null,null,null,null,null,null,null,"HOSPITAL DE SAN CAMILO - SAN FELIPE","HSNCAMILO"]
[null,null,null,null,null,null,null,null,null,"HOSPITAL PSIQUIÁTRICO DR. PHILIPPE PINEL - PUTAENDO","HPSIPINEL"]
[null,null,null,null,null,null,null,null,null,"HOSPITAL SAN ANTONIO - PUTAENDO","HSNANTONIO"]
[null,null,null,null,null,null,null,null,null,"HOSPITAL SAN FRANCISCO - LLAY-LLAY","HSNFRANC"]
[null,null,null,null,null,null,null,null,null,"HOSPITAL SAN JUAN DE DIOS - LOS ANDES","HSJD"]
[null,null,null,null,null,null,null,null,null,"HOSPITAL 21 DE MAYO - TALTAL","H21MAYO"]
[null,null,null,null,null,null,null,null,null,"HOSPITAL DE MEJILLONES","HMEJILL"]
[null,null,null,null,null,null,null,null,null,"HOSPITAL DR. CARLOS CISTERNAS - CALAMA","HDRCIST"]
[null,null,null,null,null,null,null,null,null,"HOSPITAL LEONARDO GUZMÁN - ANTOFAGASTA","HLGUZMAN"]
[null,null,null,null,null,null,null,null,null,"HOSPITAL MARCOS MACUADA - TOCOPILLA","HTOCOPILLA"]
[null,null,null,null,null,null,null,null,null,"HOSPITAL DE COLLIPULLI","HCOLLIP"]
[null,null,null,null,null,null,null,null,null,"HOSPITAL DE LONQUIMAY","HLONQ"]
[null,null,null,null,null,null,null,null,null,"HOSPITAL DE PURÉN","HPUREN"]
[null,null,null,null,null,null,null,null,null,"HOSPITAL DR. DINO STAGNO M - TRAIGUÉN","HTRAIGUEN"]
[null,null,null,null,null,null,null,null,null,"HOSPITAL DR. MAURICIO HEYERMANN - ANGOL","HANGOL"]
[null,null,null,null,null,null,null,null,null,"HOSPITAL DR. OSCAR HERNÁNDEZ E. - CURACAUTÍN","HCURACAUTIN"]
[null,null,null,null,null,null,null,null,null,"HOSPITAL SAN JOSÉ - VICTORIA","HVICTORIA"]
[null,null,null,null,null,null,null,null,null,"CONSULTORIO MIRAFLORES","CONSMIRAFLORES"]
[null,null,null,null,null,null,null,null,null,"HOSPITAL DE CARAHUE","HCARAHUE"]
[null,null,null,null,null,null,null,null,null,"HOSPITAL DE GALVARINO","HGALVARINO"]
[null,null,null,null,null,null,null,null,null,"HOSPITAL DE GORBEA","HGORBEA"]
[null,null,null,null,null,null,null,null,null,"HOSPITAL DE INTERCULTURA - NUEVA IMPERIAL","HNIMPERIAL"]
[null,null,null,null,null,null,null,null,null,"HOSPITAL DE LONCOCHE","HLONCOCHE"]
[null,null,null,null,null,null,null,null,null,"HOSPITAL DE PITRUFQUÉN","HPITRUFQUEN"]
[null,null,null,null,null,null,null,null,null,"HOSPITAL DE TOLTÉN","HTOLTEN"]
[null,null,null,null,null,null,null,null,null,"HOSPITAL DE VILCÚN","HVILCUN"]
[null,null,null,null,null,null,null,null,null,"HOSPITAL DE VILLARRICA","HVILLARRICA"]
[null,null,null,null,null,null,null,null,null,"HOSPITAL DR. ABRAHAM GODOY - LAUTARO","HLAUTARO"]
[null,null,null,null,null,null,null,null,null,"HOSPITAL DR. ARTURO HILLERNS LARRAÑAGA - SAAVEDRA","HSAAVEDRA"]
[null,null,null,null,null,null,null,null,null,"HOSPITAL DR. EDUARDO GONZÁLEZ GALENO - CUNCO","HCUNCO"]
[null,null,null,null,null,null,null,null,null,"HOSPITAL DR. HERNÁN HENRÍQUEZ ARAVENA - TEMUCO","HTEMUCO"]
[null,null,null,null,null,null,null,null,null,"HOSPITAL DE CONTULMO","HCONTULMO"]
[null,null,null,null,null,null,null,null,null,"HOSPITAL DE LEBU","HLEBU"]
[null,null,null,null,null,null,null,null,null,"HOSPITAL DR. RICARDO FIGUEROA GONZÁLEZ DE CAÑETE","HCAÑETE"]
[null,null,null,null,null,null,null,null,null,"HOSPITAL PROVINCIAL DR. RAFAEL AVARÍA - CURANILAHUE","HCURANILAHUE"]
[null,null,null,null,null,null,null,null,null,"HOSPITAL SAN VICENTE DE ARAUCO","HARAUCO"]
[null,null,null,null,null,null,null,null,null,"HOSPITAL JUAN NOÉ CREVANNI","HCREVANNI"]
[null,null,null,null,null,null,null,null,null,"HOSPITAL  PROVINCIAL DEL HUASCO MONSEÑOR FDO. ARIZTÍA RUIZ - VALLENAR","HVALLENAR"]
[null,null,null,null,null,null,null,null,null,"HOSPITAL DR. FLORENCIO VARGAS - DIEGO DE ALMAGRO","HDALMAGRO"]
[null,null,null,null,null,null,null,null,null,"HOSPITAL DR. JERÓNIMO MÉNDEZ ARANCIBIA - CHAÑARAL","HCHAÑARAL"]
[null,null,null,null,null,null,null,null,null,"HOSPITAL DR. MANUEL MAGALLANES MEDLING - HUASCO","HHUASCO"]
[null,null,null,null,null,null,null,null,null,"HOSPITAL SAN JOSÉ DEL CARMEN - COPIAPÓ","HCOPIAPO"]
[null,null,null,null,null,null,null,null,null,"CONSULTORIO DR. ALEJANDRO GUTIÉRREZ","CONSGUTIERREZ"]
[null,null,null,null,null,null,null,null,null,"CONSULTORIO VÍCTOR DOMINGO SILVA","CONSSILVA"]
[null,null,null,null,null,null,null,null,null,"DIRECCIÓN DE SALUD RURAL","DIRSALRUR"]
[null,null,null,null,null,null,null,null,null,"HOSPITAL DE PUERTO AYSÉN","HPTOAYSEN"]
[null,null,null,null,null,null,null,null,null,"HOSPITAL DR. JORGE IBAR - PUERTO CISNES","HPTOCISNES"]
[null,null,null,null,null,null,null,null,null,"HOSPITAL DR. LEOPOLDO ORTEGA R. - CHILE CHICO","HCHILECHICO"]
[null,null,null,null,null,null,null,null,null,"HOSPITAL LORD COCHRANE","HCOCHRANE"]
[null,null,null,null,null,null,null,null,null,"HOSPITAL REGIONAL COYHAIQUE","HREGCOY"]
[null,null,null,null,null,null,null,null,null,"HOSPITAL DE COÍNCO","HCOINCO"]
[null,null,null,null,null,null,null,null,null,"HOSPITAL DE LITUECHE","HLITUECHE"]
[null,null,null,null,null,null,null,null,null,"HOSPITAL DE LOLOL","HLOLOL"]
[null,null,null,null,null,null,null,null,null,"HOSPITAL DE MARCHIGÜE","HMARCHIGUE"]
[null,null,null,null,null,null,null,null,null,"HOSPITAL DE NANCAGUA","HNANCAGUA"]
[null,null,null,null,null,null,null,null,null,"HOSPITAL DE PICHIDEGUA","HPUICHIDEGUA"]
[null,null,null,null,null,null,null,null,null,"HOSPITAL DE PICHILEMU","HPICHILEMU"]
[null,null,null,null,null,null,null,null,null,"HOSPITAL DE SANTA CRUZ","HSTACRUZ"]
[null,null,null,null,null,null,null,null,null,"HOSPITAL DEL SALVADOR - PEUMO","HPEUMO"]
[null,null,null,null,null,null,null,null,null,"HOSPITAL DR. RICARDO VALENZUELA SÁEZ - RENGO","HRENGO"]
[null,null,null,null,null,null,null,null,null,"HOSPITAL MERCEDES - CHIMBARONGO","HCHIMBARONGO"]
[null,null,null,null,null,null,null,null,null,"HOSPITAL REGIONAL DE RANCAGUA","HRANCAGUA"]
[null,null,null,null,null,null,null,null,null,"HOSPITAL SAN JUAN DE DIOS - SAN FERNANDO","HSNFERNANDO"]
[null,null,null,null,null,null,null,null,null,"HOSPITAL SAN VICENTE DE TAGUA-TAGUA","HTAGUA"]
[null,null,null,null,null,null,null,null,null,"HOSPITAL SANTA FILOMENA - GRANEROS","HGRANEROS"]
[null,null,null,null,null,null,null,null,null,"COMPLEJO ASISTENCIAL DR. VÍCTOR RÍOS RUIZ - LOS ÁNGELES","HLOSANGELES"]
[null,null,null,null,null,null,null,null,null,"HOSPITAL DE LAJA","HLAJA"]
[null,null,null,null,null,null,null,null,null,"HOSPITAL DE MULCHÉN","HMULCHEN"]
[null,null,null,null,null,null,null,null,null,"HOSPITAL DE NACIMIENTO","HNACIMIENTO"]
[null,null,null,null,null,null,null,null,null,"HOSPITAL DE SANTA BÁRBARA","HSTABARBARA"]
[null,null,null,null,null,null,null,null,null,"HOSPITAL DE YUMBEL","HYUMBEL"]
[null,null,null,null,null,null,null,null,null,"HOSPITAL DR. ROBERTO MUÑOZ URRUTIA DE HUÉPIL","HHUEPIL"]
[null,null,null,null,null,null,null,null,null,"HOSPITAL DE ACHAO","HACHAO"]
[null,null,null,null,null,null,null,null,null,"HOSPITAL DE ANCUD","HANCUD"]
[null,null,null,null,null,null,null,null,null,"HOSPITAL DE CASTRO","HCASTRO"]
[null,null,null,null,null,null,null,null,null,"HOSPITAL DE QUEILÉN","HQUEILEN"]
[null,null,null,null,null,null,null,null,null,"HOSPITAL DE QUELLÓN","HQUELLON"]
[null,null,null,null,null,null,null,null,null,"CENTRO DE SANGRE CONCEPCIÓN","CENSANCON"]
[null,null,null,null,null,null,null,null,null,"CESFAM VÍCTOR M. FERNÁNDEZ","CESFAMFER"]
[null,null,null,null,null,null,null,null,null,"HOSPITAL CLÍNICO REGIONAL DR. GUILLERMO GRANT BENAVENTE","HBENAVENTE"]
[null,null,null,null,null,null,null,null,null,"HOSPITAL CLORINDA AVELLO - SANTA JUANA","HSTAJUANA"]
[null,null,null,null,null,null,null,null,null,"HOSPITAL DE FLORIDA","HFLORIDA"]
[null,null,null,null,null,null,null,null,null,"HOSPITAL DE LOTA","HLOTA"]
[null,null,null,null,null,null,null,null,null,"HOSPITAL SAN JOSÉ - CORONEL","HCORONEL"]
[null,null,null,null,null,null,null,null,null,"HOSPITAL TRAUMATOLÓGICO - CONCEPCIÓN","HTRAUCONCE"]
[null,null,null,null,null,null,null,null,null,"HOSPITAL DE SALAMANCA","HSALAMANCA"]
[null,null,null,null,null,null,null,null,null,"HOSPITAL DR. ANTONIO TIRADO LANAS - OVALLE","HOVALLE"]
[null,null,null,null,null,null,null,null,null,"HOSPITAL DR. JOSÉ ARRAÑO - ANDACOLLO","HANDACOLLO"]
[null,null,null,null,null,null,null,null,null,"HOSPITAL SAN JUAN DE DIOS - COMBARBALÁ","HCOMBARBALA"]
[null,null,null,null,null,null,null,null,null,"HOSPITAL SAN JUAN DE DIOS - ILLAPEL","HILLAPEL"]
[null,null,null,null,null,null,null,null,null,"HOSPITAL SAN JUAN DE DIOS - LA SERENA","HLASERENA"]
[null,null,null,null,null,null,null,null,null,"HOSPITAL SAN JUAN DE DIOS - VICUÑA","HVICUÑA"]
[null,null,null,null,null,null,null,null,null,"HOSPITAL SAN PABLO - COQUIMBO","HCOQUIMBO"]
[null,null,null,null,null,null,null,null,null,"HOSPITAL SAN PEDRO DE LOS VILOS","HLOSVILOS"]
[null,null,null,null,null,null,null,null,null,"HOSPITAL ALTO HOSPICIO","HAHOSPICIO"]
[null,null,null,null,null,null,null,null,null,"HOSPITAL ERNESTO TORRES GALDAMES","HGALDAMES"]
[null,null,null,null,null,null,null,null,null,"HOSPITAL DR. AUGUSTO ESSMANN BURGOS - NATALES","HNATALES"]
[null,null,null,null,null,null,null,null,null,"HOSPITAL DR. LAUTARO NAVARRO AVARIA - PUNTA ARENAS","HPTAARENAS"]
[null,null,null,null,null,null,null,null,null,"HOSPITAL DR. MARCO ANTONIO CHAMORRO - PORVENIR","HPORVENIR"]
[null,null,null,null,null,null,null,null,null,"HOSP. PDTE. CARLOS IBÁÑEZ DEL CAMPO - LINARES","HLINARES"]
[null,null,null,null,null,null,null,null,null,"HOSPITAL DE CONSTITUCIÓN","HCONSTITUCION"]
[null,null,null,null,null,null,null,null,null,"HOSPITAL DE CUREPTO","HCUREPTO"]
[null,null,null,null,null,null,null,null,null,"HOSPITAL DE HUALAÑÉ","HHUALAÑE"]
[null,null,null,null,null,null,null,null,null,"HOSPITAL DE LICANTÉN","HLICANTEN"]
[null,null,null,null,null,null,null,null,null,"HOSPITAL DE MOLINA","HMOLINA"]
[null,null,null,null,null,null,null,null,null,"HOSPITAL DE TENO","HTENO"]
[null,null,null,null,null,null,null,null,null,"HOSPITAL DR. ABEL FUENTEALBA LAGOS - SAN JAVIER","HSNJAVIER"]
[null,null,null,null,null,null,null,null,null,"HOSPITAL DR. BENJAMÍN PEDREROS - CHANCO","HCHANCO"]
[null,null,null,null,null,null,null,null,null,"HOSPITAL DR. CÉSAR GARAVAGNO BUROTTO - TALCA","HTALCA"]
[null,null,null,null,null,null,null,null,null,"HOSPITAL SAN JOSÉ - PARRAL","HPARRAL"]
[null,null,null,null,null,null,null,null,null,"HOSPITAL SAN JUAN DE DIOS - CAUQUENES","HCAUQUENES"]
[null,null,null,null,null,null,null,null,null,"HOSPITAL SAN JUAN DE DIOS DE CURICÓ","HCURICO"]
[null,null,null,null,null,null,null,null,null,"DIRECCION DE ATENCION PRIMARIA","DIRATPRIM"]
[null,null,null,null,null,null,null,null,null,"HOSPITAL CLÍNICO SAN BORJA-ARRIARÁN","HSNBORJA"]
[null,null,null,null,null,null,null,null,null,"HOSPITAL DE URGENCIA ASISTENCIA PÚBLICA DR. ALEJANDRO DEL RÍO","HADELRIO"]
[null,null,null,null,null,null,null,null,null,"HOSPITAL EL CARMEN DE MAIPÚ","HMAIPU"]
[null,null,null,null,null,null,null,null,null,"COMPLEJO HOSPITALARIO SAN JOSÉ (H. SAN JOSÉ - SANTIAGO)","HSNJOSESTGO"]
[null,null,null,null,null,null,null,null,null,"HOSPITAL DE TIL - TIL","HTILTIL"]
[null,null,null,null,null,null,null,null,null,"HOSPITAL DR. ROBERTO DEL RÍO","HRRIO"]
[null,null,null,null,null,null,null,null,null,"INSTITUTO NACIONAL DEL CÁNCER DR. CAUPOLICÁN PARDO CORREA","INSCORREA"]
[null,null,null,null,null,null,null,null,null,"INSTITUTO PSIQUIÁTRICO DR. JOSÉ HORWITZ BARAK","INSTBARAK"]
[null,null,null,null,null,null,null,null,null,"CRS SALVADOR ALLENDE","CRSALLENDE"]
[null,null,null,null,null,null,null,null,null,"HOSPITAL ADALBERTO STEEGER - TALAGANTE","HTALAGANTE"]
[null,null,null,null,null,null,null,null,null,"HOSPITAL DE CURACAVÍ","HCURACAVI"]
[null,null,null,null,null,null,null,null,null,"HOSPITAL DE PEÑAFLOR","HPEÑAFLOR"]
[null,null,null,null,null,null,null,null,null,"HOSPITAL DR. FÉLIX BULNES CERDA","HFELIXBULNES"]
[null,null,null,null,null,null,null,null,null,"HOSPITAL SAN JOSÉ - MELIPILLA","HMELIPILLA"]
[null,null,null,null,null,null,null,null,null,"HOSPITAL SAN JUAN DE DIOS - SANTIAGO","HSNJUANSTGO"]
[null,null,null,null,null,null,null,null,null,"INSTITUTO TRAUMATOLÓGICO DR. TEODORO GEBAUER","ITRAUGEBAUER"]
[null,null,null,null,null,null,null,null,null,"HOSPITAL DEL SALVADOR","HSALVADOR"]
[null,null,null,null,null,null,null,null,null,"HOSPITAL DR. LUIS CALVO MACKENNA","HCALVOMACK"]
[null,null,null,null,null,null,null,null,null,"HOSPITAL DR. LUIS TISNÉ BROUSSE","HTISNE"]
[null,null,null,null,null,null,null,null,null,"HOSPITAL HANGA ROA","HHANGAROA"]
[null,null,null,null,null,null,null,null,null,"INST. NAC.DE REHABILITACIÓN INFANTIL PRESIDENTE PEDRO AGUIRRE CERDA","INACPAC"]
[null,null,null,null,null,null,null,null,null,"INSTITUTO DE NEUROCIRUGÍA DR. ALFONSO ASENJO","INEUASENJO"]
[null,null,null,null,null,null,null,null,null,"INSTITUTO NACIONAL DE ENFERMEDADES RESPIRATORIAS Y CIRUGÍA TORÁCICA","INAENRES"]
[null,null,null,null,null,null,null,null,null,"INSTITUTO NACIONAL GERIÁTRICO PRESIDENTE EDUARDO FREI MONTALVA","IGERIATRICOFREI"]
[null,null,null,null,null,null,null,null,null,"HOSPITAL  DE ENFERMEDADES INFECCIOSAS DR. LUCIO CÓRDOVA","HINFECCORDOVA"]
[null,null,null,null,null,null,null,null,null,"HOSPITAL BARROS LUCO TRUDEAU","HBARROSLUCO"]
[null,null,null,null,null,null,null,null,null,"HOSPITAL DE SAN LUIS","HSNLUIS"]
[null,null,null,null,null,null,null,null,null,"HOSPITAL DR. EXEQUIEL GONZÁLEZ CORTÉS","HGCORTEZ"]
[null,null,null,null,null,null,null,null,null,"HOSPITAL EL PINO","HELPINO"]
[null,null,null,null,null,null,null,null,null,"HOSPITAL PSIQUIÁTRICO EL PERAL","HELPERAL"]
[null,null,null,null,null,null,null,null,null,"COMPLEJO HOSPITALARIO DR. SÓTERO DEL RÍO","HSOTERORIO"]
[null,null,null,null,null,null,null,null,null,"CRS SAN RAFAEL LA FLORIDA","CRSLAFLORIDA"]
[null,null,null,null,null,null,null,null,null,"HOSPITAL METROPOLITANO - EX MILITAR","HMETROPOL"]
[null,null,null,null,null,null,null,null,null,"HOSPITAL SAN JOSÉ DE MAIPO","HSNJOSEMAIPO"]
[null,null,null,null,null,null,null,null,null,"Hospital Clínico Metropolitano de la Florida","HMETRLAFLORIDA"]
[null,null,null,null,null,null,null,null,null,"CESFAM VIOLETA PARRA","CESFAMPARRA"]
[null,null,null,null,null,null,null,null,null,"HOSPITAL CLÍNICO HERMINDA MARTÍN - CHILLÁN","HCHILLAN"]
[null,null,null,null,null,null,null,null,null,"HOSPITAL DE BULNES","HBULNES"]
[null,null,null,null,null,null,null,null,null,"HOSPITAL DE COELEMU","HCOELEMU"]
[null,null,null,null,null,null,null,null,null,"HOSPITAL DE EL CARMEN","HELCARMEN"]
[null,null,null,null,null,null,null,null,null,"HOSPITAL DE QUIRIHUE","HQUIRIHUE"]
[null,null,null,null,null,null,null,null,null,"HOSPITAL DE SAN CARLOS","HSNCARLOS"]
[null,null,null,null,null,null,null,null,null,"HOSPITAL DR. PEDRO MORALES - YUNGAY","HYUNGAY"]
[null,null,null,null,null,null,null,null,null,"HOSPITAL BASE DE OSORNO","HOSORNO"]
[null,null,null,null,null,null,null,null,null,"HOSPITAL DE PUERTO OCTAY","HPTOOCTAY"]
[null,null,null,null,null,null,null,null,null,"HOSPITAL DE PURRANQUE","HPURRANQUE"]
[null,null,null,null,null,null,null,null,null,"HOSPITAL DE RÍO NEGRO","HRIONEGRO"]
[null,null,null,null,null,null,null,null,null,"HOSPITAL MISIÓN SAN JUAN DE LA COSTA","HSNJUANCOSTA"]
[null,null,null,null,null,null,null,null,null,"HOSPITAL MISIÓN QUILACAHUÍN","HQUILACAHUIN"]
[null,null,null,null,null,null,null,null,null,"CESFAM DE RIO NEGRO HORNOPIRÉN","CESFAMHORNOPIREN"]
[null,null,null,null,null,null,null,null,null,"CONSULTORIO RIO NEGRO","CONSRIONEGRO"]
[null,null,null,null,null,null,null,null,null,"HOSPITAL CHAITÉN","HCHAITEN"]
[null,null,null,null,null,null,null,null,null,"HOSPITAL DE CALBUCO","HCALBUCO"]
[null,null,null,null,null,null,null,null,null,"HOSPITAL DE FRESIA","HFRESIA"]
[null,null,null,null,null,null,null,null,null,"HOSPITAL DE FRUTILLAR","HFRUTILLAR"]
[null,null,null,null,null,null,null,null,null,"HOSPITAL DE FUTALEUFÚ","HFUTALEUFU"]
[null,null,null,null,null,null,null,null,null,"HOSPITAL DE LLANQUIHUE","HLLANQUIHUE"]
[null,null,null,null,null,null,null,null,null,"HOSPITAL DE MAULLÍN","HMAULLIN"]
[null,null,null,null,null,null,null,null,null,"HOSPITAL DE PALENA","HPALENA"]
[null,null,null,null,null,null,null,null,null,"HOSPITAL DE PUERTO MONTT","HPTOMONTT"]
[null,null,null,null,null,null,null,null,null,"HOSPITAL DE TOMÉ","HTOME"]
[null,null,null,null,null,null,null,null,null,"HOSPITAL LAS HIGUERAS - TALCAHUANO","HTALCAHUANO"]
[null,null,null,null,null,null,null,null,null,"HOSPITAL PENCO - LIRQUÉN","HLIRQUEN"]
[null,null,null,null,null,null,null,null,null,"CESFAM DE LIRQUÉN","CESFAMLIRQUEN"]
[null,null,null,null,null,null,null,null,null,"CESFAM EXTERNO VALDIVIA","CESFAMVAL"]
[null,null,null,null,null,null,null,null,null,"HOSPITAL CLÍNICO REGIONAL- VALDIVIA","HVALDIVIA"]
[null,null,null,null,null,null,null,null,null,"HOSPITAL DE CORRAL","HCORRAL"]
[null,null,null,null,null,null,null,null,null,"HOSPITAL DE LANCO","HLANCO"]
[null,null,null,null,null,null,null,null,null,"HOSPITAL DE LOS LAGOS","HLOSLAGOS"]
[null,null,null,null,null,null,null,null,null,"HOSPITAL DE PAILLACO","HPAILLACO"]
[null,null,null,null,null,null,null,null,null,"HOSPITAL DE RÍO BUENO","HRIOBUENO"]
[null,null,null,null,null,null,null,null,null,"HOSPITAL JUAN MOREY - LA UNIÓN","HLAUNION"]
[null,null,null,null,null,null,null,null,null,"HOSPITAL CARLOS VAN BUREN - VALPARAÍSO","HVANBUREN"]
[null,null,null,null,null,null,null,null,null,"HOSPITAL CLAUDIO VICUÑA - SAN ANTONIO","HSNANTONIO"]
[null,null,null,null,null,null,null,null,null,"HOSPITAL DEL SALVADOR - VALPARAÍSO","HSALVADORVAL"]
[null,null,null,null,null,null,null,null,null,"HOSPITAL DR. EDO. PEREIRA RAMÍREZ - VALPARAÍSO","HRAMIREZVAL"]
[null,null,null,null,null,null,null,null,null,"HOSPITAL SAN JOSÉ - CASABLANCA","HCASABLANCA"]
[null,null,null,null,null,null,null,null,null,"HOSPITAL ADRIANA COUSIÑO","HCOUSIÑO"]
[null,null,null,null,null,null,null,null,null,"HOSPITAL CENTRO GERIÁTRICO PAZ DE LA TARDE","HGERPAZ"]
[null,null,null,null,null,null,null,null,null,"HOSPITAL DE PETORCA","HPETORCA"]
[null,null,null,null,null,null,null,null,null,"HOSPITAL DE QUILPUÉ","HQUILPUE"]
[null,null,null,null,null,null,null,null,null,"HOSPITAL DR. GUSTAVO FRICKE - VIÑA DEL MAR","HFRICKE"]
[null,null,null,null,null,null,null,null,null,"HOSPITAL DR. MARIO SÁNCHEZ VERGARA - LA CALERA","HLACALERA"]
[null,null,null,null,null,null,null,null,null,"HOSPITAL DR. VÍCTOR HUGO MOLL - CABILDO","HCABILDO"]
[null,null,null,null,null,null,null,null,null,"HOSPITAL JUANA ROSS DE EDWARDS - PEÑABLANCA","HPEÑABLANCA"]
[null,null,null,null,null,null,null,null,null,"HOSPITAL SAN AGUSTÍN","HSNAGUSTIN"]
[null,null,null,null,null,null,null,null,null,"HOSPITAL SAN MARTÍN - QUILLOTA","HQUILLOTA"]
[null,null,null,null,null,null,null,null,null,"HOSPITAL SANTO TOMÁS - LIMACHE","HLIMACHE"]
[null,null,null,null,null,null,null,null,null,"TESORERÍA GENERAL DE LA REPÚBLICA","TGR"]
[null,null,null,null,null,null,null,null,null,"TESORO PÚBLICO","TESPUB"]
[null,null,null,null,null,null,null,null,null,"COORDINACIÓN DE CONCESIONES","COORCON"]
[null,null,null,null,null,null,null,null,null,"COMITÉ INNOVA CHILE ","INNOVA"]
[null,null,null,null,null,null,null,null,null,"POLICIA DE INVESTIGACIONES","PDI"]

{"sheet":"Resumen","index":2,"n_rows":47,"n_cols":15,"rows_kept":47,"cut":false,"hidden":false,"merged":[[33,1,33,14],[20,1,20,14],[46,6,46,9],[39,1,39,9],[40,1,40,2],[40,3,40,9],[41,1,41,2],[41,3,41,9],[42,1,42,2],[42,3,42,9],[43,1,43,2],[43,3,43,9],[45,6,45,9],[1,1,1,10],[3,2,3,5],[3,7,3,10],[4,2,4,5],[4,7,4,10],[5,2,5,5],[5,7,5,10],[6,2,6,5],[6,7,6,10],[26,1,26,10],[8,1,8,14],[14,1,14,12]]}
[]
[null,"Plan Anual de Auditoría "]
[]
[null,"Ministerio: ",null,null,null,null,"Año planificado"]
[null,"Servicio:",null,null,null,null,"Versión"]
[null,"Servicio dependiente",null,null,null,null,"Fecha de Emisión:"]
[null,"Región:",null,null,null,null,"Código del Plan Anual de Auditoría:"]
[]
[null,"1.- Trabajos de Aseguramiento Priorizadas en Análisis de Riesgos"]
[null,"Codigo Trabajo","Nombre Trabajo ","Tipo de Trabajo","Objetivo General del Trabajo","Proceso Transversal en el Estado ","Alcance General","Frecuencia","Riesgos Críticos Globales","Equipo de Auditoría","Horas de Auditoría","Mes Inicio","Mes Termino","Cantidad de Informes","\nFecha estimada de envío del Informe\n"]
[]
[]
[]
[]
[null,"2.- Trabajos de Consultoría"]
[null,"Codigo Trabajo","Nombre Trabajo ","Objetivo General de Consultoría","Tipo de trabajo","Proceso Transversal en el Estado ","Frecuencia","Equipo de Auditoría","Horas de Auditoría","Mes Inicio","Mes Termino","Cantidad de Informes","\nFecha estimada de envío del Informe\n"]
[]
[]
[]
[]
[null,"3.- Trabajos de Seguimiento"]
[null,"Codigo Trabajo","Nombre Trabajo ","Tipo de Trabajo","Objetivo de Auditoría General del Trabajo","Materia de Seguimiento","Proceso Transversal en el Estado ","Frecuencia","Incluye anexo con Compromisos Pendientes de implementar","Equipo de Auditoría","Horas de Auditoria","Mes Inicio","Mes Termino","Cantidad de Informes","\nFecha estimada de envío del Informe\n"]
[]
[]
[]
[]
[null,"4.- Trabajos Rutinarios y Obligatorios por Normativa"]
[null,"Codigo Trabajo","Nombre Trabajo ","Tipo de Trabajo","Objetivo de Auditoría General del Trabajo","Proceso Transversal en el Estado ","Frecuencia","Equipo de Auditoría","Horas de Auditoría","Mes Inicio","Mes Termino"]
[]
[]
[]
[]
[]
[null,"5.- Trabajos Solicitados por la Dirección"]
[null,"Codigo Trabajo","Nombre Trabajo ","Clasificación del trabajo ","Tipo de trabajo","Objetivo General de Auditoría","Proceso Transversal en el Estado ","Frecuencia","Riesgos Críticos Globales","Equipo de Auditoría","Horas de Auditoría","Mes Inicio","Mes Termino","Cantidad de Informes","\nFecha estimada de envío del Informe\n"]
[]
[]
[]
[]
[null,"6.- Resumen de horas estimadas"]
[null,"Cantidad Horas disponibles año 201X"]
[null,"Horas estimadas para Capacitación"]
[null,"Horas estimadas para Trabajos planificados"]
[null,"Horas estimadas para Trabajos no  planificados"]
[]
[null,"Formulado Por:",null,"Revisado/Validado por Jefe de Auditoría Interna",null,"Aprobación del Jefe Superior del Servicio"]
[null,"Fecha",null,"Fecha",null,"Fecha"]

{"sheet":"Carta Gantt","index":3,"n_rows":5,"n_cols":15,"rows_kept":5,"cut":false,"hidden":false,"merged":[[3,3,3,14],[1,1,1,14],[3,1,4,1],[3,2,4,2]]}
[]
[null,"Carta Gantt"]
[]
[null,"Código Trabajo","Nombre Trabajo ","CARTA GANTT"]
[null,null,null,"E","F","M","A","M","J","J","A","S","O","N","D"]

{"sheet":"1.- Trabajos de Auditoría","index":4,"n_rows":4,"n_cols":14,"rows_kept":4,"cut":false,"hidden":false,"merged":[[1,0,1,9]]}
[1]
["1.- Trabajos de Auditoría Priorizados en Base a Análisis de Riesgos"]
[]
["Código del Trabajo de Auditoria ","Nombre del Trabajo","Tipo de Trabajo","Objetivo de Auditoría General del Trabajo","Proceso Transversal en el Estado ","Alcance General","Frecuencia","Riesgos Críticos Globales","Cantidad de Auditores","Horas de Auditoría","Mes Inicio","Mes Termino","Cantidad de Informes que se remitirán al CAIGG, asociados al Trabajo.","Fecha estimada de envío del Informe"]

{"sheet":"2.- Trabajos de Consultoría","index":5,"n_rows":4,"n_cols":12,"rows_kept":4,"cut":false,"hidden":false,"merged":[[1,0,1,9]]}
[2]
["2.- Trabajos de Consultoría"]
[]
["Codigo trabajo consultoria","Nombre del Trabajo","Objetivo General del Trabajo de  Consultoría","Tipo de Trabajo","Proceso Transversal en el Estado ","Frecuencia","Cantidad de Auditores","Horas de Auditoria","Mes Inicio","Mes Termino","Cantidad de Informes que se remitirán al CAIGG, asociados al Trabajo.","Fecha estimada de envío del Informe"]

{"sheet":"3.- Trabajos de Seguimiento","index":6,"n_rows":4,"n_cols":14,"rows_kept":4,"cut":false,"hidden":false,"merged":[[1,0,1,11]]}
[3]
["3.- Trabajos de Seguimiento"]
[]
["Codigo Trabajo de Seguimiento","Nombre del Trabajo","Tipo de Trabajo","Objetivo de Auditoría General del Trabajo","Materia de Seguimiento","Proceso Transversal en el Estado ","Frecuencia","Incluye anexo con Compromisos Pendientes de implementar","Equipo de Auditoría","Horas de Auditoria","Mes Inicio","Mes Termino","Cantidad de Informes que se remitirán al CAIGG, asociados al Trabajo.","Fecha estimada de envío del Informe"]

{"sheet":"4.- Trabajos Rutinarios","index":7,"n_rows":4,"n_cols":10,"rows_kept":4,"cut":false,"hidden":false,"merged":[[1,0,1,9]]}
[4]
["4.- Trabajos Rutinarios y Obligatorios por Normativa"]
[]
["Codigo Trabajo Rutinario","Nombre del Trabajo","Tipo de Trabajo","Objetivo de Auditoría General del Trabajo","Proceso Transversal en el Estado ","Frecuencia","Equipo de Auditoría","Horas de Auditoría","Mes Inicio","Mes Termino"]

{"sheet":"5.- Trabajos Dirección","index":8,"n_rows":4,"n_cols":14,"rows_kept":4,"cut":false,"hidden":false,"merged":[[1,0,1,9]]}
[5]
["5.- Trabajos Solicitados por el Jefe de Servicio"]
[]
["Codigo Trabajo Solicitado","Nombre del Trabajo","Clasificación del trabajo ","Tipo de Trabajo","Objetivo General de Auditoría","Proceso Transversal en el Estado ","Frecuencia","Riesgos Críticos Globales (en caso que trabajo sea de Aseguramiento","Equipo de Auditoría","Horas de Auditoria","Mes Inicio","Mes Termino","Cantidad de Informes que se remitirán al CAIGG, asociados al Trabajo.","Fecha estimada de envío del Informe"]

{"sheet":"Calculo de horas disponibles","index":9,"n_rows":24,"n_cols":3,"rows_kept":24,"cut":false,"hidden":false,"merged":[[23,1,23,2],[0,0,0,2],[16,1,16,2],[8,1,8,2],[3,1,3,2]]}
["Cálculo de Horas Disponibles"]
[]
[]
[null,"Calculo de días disponibles"]
[null,"Número de Funcionarios de la Unidad de Auditoría Interna"]
[null,"Total  de días habiles del año planificado"]
[null,"Total días habiles de la Unidad de Auditoría Interna",{"$f":" C5*C6","v":0}]
[]
[null,"Estimación de dias no considerados en la planificación"]
[null,"Total días de Feriados legales del equipo de auditoría"]
[null,"Total días de Permisos administrativos"]
[null,"Total  de otros días no clasificados"]
[null,"Total días de reuniones"]
[null,"Total días no considerados en la planificación anual",{"$f":"SUM(C10:C13)","v":0}]
[]
[]
[null,"Estimación de horas de auditoría disponibles"]
[null,"Número promedio de horas diarias"]
[null,"Total días disponible año planificado (total días habiles UAI - Total días no considerados)",{"$f":"C7-C14","v":0}]
[null,"Total de horas disponibles año 20XX (Total días disponibles x número promedio de horas)",{"$f":"C19*C18","v":0}]
[null,"Total horas disponibles proyectadas por mes (Total horas disponibles año planificado /12)",{"$f":"C20/12","v":0}]
[]
[]
[null,"Nota: considerar en el cálculo al Jefe de la Unidad"]

{"sheet":"Detalle Capacitaciones","index":10,"n_rows":150,"n_cols":7,"rows_kept":150,"cut":false,"hidden":false,"merged":[[1,1,1,3],[1,4,1,6]]}
[]
[null,"Total de horas estimadas para Capacitaciones año planificado",null,null,{"$f":"SUM(G4:G150)","v":0}]
[null,"Nombre Actividad Capacitación","Proveedor Capacitación (CAIGG-CGR- Otros)","Especificar otro proveedor","Número de participantes","Horas Actividad","Horas totales"]
[null,null,null,null,null,null,{"$f":"E4*F4","v":0}]
[null,null,null,null,null,null,{"$f":"E5*F5","v":0}]
[null,null,null,null,null,null,0]
[null,null,null,null,null,null,0]
[null,null,null,null,null,null,0]
[null,null,null,null,null,null,0]
[null,null,null,null,null,null,0]
[null,null,null,null,null,null,0]
[null,null,null,null,null,null,0]
[null,null,null,null,null,null,0]
[null,null,null,null,null,null,0]
[null,null,null,null,null,null,0]
[null,null,null,null,null,null,0]
[null,null,null,null,null,null,0]
[null,null,null,null,null,null,0]
[null,null,null,null,null,null,0]
[null,null,null,null,null,null,0]
[null,null,null,null,null,null,0]
[null,null,null,null,null,null,0]
[null,null,null,null,null,null,0]
[null,null,null,null,null,null,0]
[null,null,null,null,null,null,0]
[null,null,null,null,null,null,0]
[null,null,null,null,null,null,0]
[null,null,null,null,null,null,0]
[null,null,null,null,null,null,0]
[null,null,null,null,null,null,0]
[null,null,null,null,null,null,0]
[null,null,null,null,null,null,0]
[null,null,null,null,null,null,0]
[null,null,null,null,null,null,0]
[null,null,null,null,null,null,0]
[null,null,null,null,null,null,0]
[null,null,null,null,null,null,0]
[null,null,null,null,null,null,0]
[null,null,null,null,null,null,0]
[null,null,null,null,null,null,0]
[null,null,null,null,null,null,0]
[null,null,null,null,null,null,0]
[null,null,null,null,null,null,0]
[null,null,null,null,null,null,0]
[null,null,null,null,null,null,0]
[null,null,null,null,null,null,0]
[null,null,null,null,null,null,0]
[null,null,null,null,null,null,0]
[null,null,null,null,null,null,{"$f":"E49*F49","v":0}]
[null,null,null,null,null,null,0]
[null,null,null,null,null,null,0]
[null,null,null,null,null,null,0]
[null,null,null,null,null,null,0]
[null,null,null,null,null,null,0]
[null,null,null,null,null,null,0]
[null,null,null,null,null,null,0]
[null,null,null,null,null,null,0]
[null,null,null,null,null,null,0]
[null,null,null,null,null,null,0]
[null,null,null,null,null,null,0]
[null,null,null,null,null,null,0]
[null,null,null,null,null,null,0]
[null,null,null,null,null,null,0]
[null,null,null,null,null,null,0]
[null,null,null,null,null,null,0]
[null,null,null,null,null,null,0]
[null,null,null,null,null,null,0]
[null,null,null,null,null,null,0]
[null,null,null,null,null,null,0]
[null,null,null,null,null,null,0]
[null,null,null,null,null,null,0]
[null,null,null,null,null,null,0]
[null,null,null,null,null,null,0]
[null,null,null,null,null,null,0]
[null,null,null,null,null,null,0]
[null,null,null,null,null,null,0]
[null,null,null,null,null,null,0]
[null,null,null,null,null,null,0]
[null,null,null,null,null,null,0]
[null,null,null,null,null,null,0]
[null,null,null,null,null,null,0]
[null,null,null,null,null,null,0]
[null,null,null,null,null,null,0]
[null,null,null,null,null,null,0]
[null,null,null,null,null,null,0]
[null,null,null,null,null,null,0]
[null,null,null,null,null,null,0]
[null,null,null,null,null,null,0]
[null,null,null,null,null,null,0]
[null,null,null,null,null,null,0]
[null,null,null,null,null,null,0]
[null,null,null,null,null,null,0]
[null,null,null,null,null,null,0]
[null,null,null,null,null,null,0]
[null,null,null,null,null,null,0]
[null,null,null,null,null,null,0]
[null,null,null,null,null,null,0]
[null,null,null,null,null,null,0]
[null,null,null,null,null,null,0]
[null,null,null,null,null,null,0]
[null,null,null,null,null,null,0]
[null,null,null,null,null,null,0]
[null,null,null,null,null,null,0]
[null,null,null,null,null,null,0]
[null,null,null,null,null,null,0]
[null,null,null,null,null,null,0]
[null,null,null,null,null,null,0]
[null,null,null,null,null,null,0]
[null,null,null,null,null,null,0]
[null,null,null,null,null,null,0]
[null,null,null,null,null,null,0]
[null,null,null,null,null,null,0]
[null,null,null,null,null,null,{"$f":"E113*F113","v":0}]
[null,null,null,null,null,null,0]
[null,null,null,null,null,null,0]
[null,null,null,null,null,null,0]
[null,null,null,null,null,null,0]
[null,null,null,null,null,null,0]
[null,null,null,null,null,null,0]
[null,null,null,null,null,null,0]
[null,null,null,null,null,null,0]
[null,null,null,null,null,null,0]
[null,null,null,null,null,null,0]
[null,null,null,null,null,null,0]
[null,null,null,null,null,null,0]
[null,null,null,null,null,null,0]
[null,null,null,null,null,null,0]
[null,null,null,null,null,null,0]
[null,null,null,null,null,null,0]
[null,null,null,null,null,null,0]
[null,null,null,null,null,null,0]
[null,null,null,null,null,null,0]
[null,null,null,null,null,null,0]
[null,null,null,null,null,null,0]
[null,null,null,null,null,null,0]
[null,null,null,null,null,null,0]
[null,null,null,null,null,null,0]
[null,null,null,null,null,null,0]
[null,null,null,null,null,null,0]
[null,null,null,null,null,null,0]
[null,null,null,null,null,null,0]
[null,null,null,null,null,null,0]
[null,null,null,null,null,null,0]
[null,null,null,null,null,null,0]
[null,null,null,null,null,null,0]
[null,null,null,null,null,null,0]
[null,null,null,null,null,null,0]
[null,null,null,null,null,null,0]
[null,null,null,null,null,null,0]
[null,null,null,null,null,null,0]

{"sheet":"6.- Resumen de horas estimadas","index":11,"n_rows":13,"n_cols":1,"rows_kept":13,"cut":false,"hidden":false,"merged":[[1,0,1,6],[4,1,4,5],[5,1,5,5],[6,1,6,5],[7,1,7,5],[12,1,12,5],[8,1,8,5],[9,1,9,5],[10,1,10,5],[11,1,11,5]]}
[6]
["6.- Estimación de  Horas Totales Disponibles"]
[]
[]
["Cantidad Horas disponibles año 201X"]
["Total Horas definidas en Trabajos de aseguramiento"]
["Total Horas definidas en Trabajos de consultoría"]
["Total Horas definidas en Trabajos de seguimiento"]
["Total Horas definidas en Trabajos rutinarios"]
["Total Horas definidas en Trabajos solicitados por la Dirección"]
["Horas estimadas capacitación"]
["Horas estimadas para Trabajos planificados"]
["Horas estimadas para Trabajos no planificados"]

{"sheet":"Instituciones","index":12,"n_rows":292,"n_cols":73,"rows_kept":292,"cut":false,"hidden":true,"merged":[]}
["MINISTERIO","EMPRESAS ESTADO","AGRICULTURA","BIENES NACIONALES","CONSEJO NACIONAL DE LA CULTURA Y LAS ARTES","DEFENSA NACIONAL","ECONOMÍA FOMENTO Y TURISMO","EDUCACIÓN","ENERGÍA","HACIENDA","INTERIOR Y SEGURIDAD PÚBLICA","JUSTICIA","MEDIO AMBIENTE","MINERÍA","OBRAS PÚBLICAS","DESARROLLO SOCIAL","PRESIDENCIA DE LA REPÚBLICA","RELACIONES EXTERIORES","SALUD","SECRETARÍA GENERAL DE GOBIERNO","SECRETARÍA GENERAL DE LA PRESIDENCIA DE LA REPÚBLICA","MUJER Y LA EQUIDAD DE GÉNERO","TRABAJO Y PREVISIÓN SOCIAL","TRANSPORTES Y TELECOMUNICACIONES","VIVIENDA Y URBANISMO","DEPORTE","DIVISION","AGUAS ANDINAS S.A.","ASTILLEROS Y MAESTRANZAS DE LA ARMADA","BANCO ESTADO DE CHILE","CASA DE MONEDA","COMERCIALIZADORA DE TRIGO","CODELCO","DESARROLLO DE TECNOLOGÍA Y SISTEMAS LIMITADA","CONCESIONARIA DE SERVICIOS SANITARIOS","ABASTECIMIENTO DE ZONAS AISLADAS","CORREOS DE CHILE","FERROCARRILES DEL ESTADO","SERVICIOS SANITARIOS LAGO PEÑUELAS","METRO S.A","EMPRESA NACIONAL DE MINERÍA","EMPRESA NACIONAL DEL CARBÓN S.A","EMPRESA NACIONAL DEL PETRÓLEO","LA NACIÓN S.A.","PORTUARIA ANTOFAGASTA","PORTUARIA ARICA","PORTUARIA AUSTRAL","PORTUARIA CHACABUCO","PORTUARIA COQUIMBO","PORTUARIA IQUIQUE","PORTUARIA PUERTO MONTT","PORTUARIA SAN ANTONIO","PORTUARIA TALCAHUANO-SAN VICENTE","PORTUARIA VALPARAÍSO","ESSAL S.A.","ESSBÍO S.A.","ESVAL S.A.","FÁBRICA Y MAESTRANZAS DEL EJÉRCITO","POLLA CHILENA DE BENEFICENCIA","PUERTO MADERO IMPRESORES","SOCIEDAD AGRÍCOLA SACOR","SOCIEDAD AGRÍCOLA Y SERVICIOS ISLA DE PASCUA LTDA","TELEVISIÓN NACIONAL DE CHILE","ZONA FRANCA DE IQUIQUE S.A","REGION","","","","","","","",""]
["AGRICULTURA","ASTILLEROS Y MAESTRANZAS DE LA ARMADA","CENTRO DE INFORMACIÓN DE RECURSOS NATURALES","SUBSECRETARÍA DE BIENES NACIONALES","CONSEJO NACIONAL DE LA CULTURA Y LAS ARTES","ACADEMIA NACIONAL DE ESTUDIOS POLÍTICOS Y ESTRATÉGICOS","AGENCIA DE LA PROMOCIÓN DE LA INVERSIÓN EXTRANJERA","AGENCIA DE CALIDAD ","COMISIÓN CHILENA DE ENERGÍA NUCLEAR","CONSEJO DE DEFENSA DEL ESTADO","DIRECCIÓN DE PREVISIÓN DE CARABINEROS DE CHILE","CORPORACIÓN DE ASISTENCIA JUDICIAL BÍO-BÍO","SERVICIO DE EVALUACIÓN AMBIENTAL","COMISIÓN CHILENA DEL COBRE","DIRECCIÓN DE AEROPUERTOS","CORPORACIÓN NACIONAL DE DESARROLLO INDÍGENA","DIRECCIÓN ADMINISTRATIVA DE LA PRESIDENCIA","AGENCIA DE COOPERACIÓN INTERNACIONAL DE CHILE ","CENTRAL DE ABASTECIMIENTO DEL SISTEMA NACIONAL DE SERVICIOS DE SALUD","CONSEJO NACIONAL DE TELEVISIÓN ","SUBSECRETARÍA GENERAL DE LA PRESIDENCIA DE LA REPÚBLICA","SERVICIO NACIONAL DE LA MUJER Y LA EQUIDAD DE GÉNERO","DIRECCIÓN DEL TRABAJO ","JUNTA DE AERONÁUTICA CIVIL","PARQUE METROPOLITANO DE SANTIAGO","INSTITUTO NACIONAL DE DEPORTES ","AUDITORIA ADMINISTRATIVA",null,"Sociber Ltda.","BancoEstado Corredores de Seguros S.A.",null,null,"Agua de la falda S.A.",null,null,null,null,"Desarrollo Inmobiliario San Bernardo S. A.",null,null,"Cia. Minera Nacional Ltda.",null,"A&C Pipeline Holding (I. Cayman)","Base de Datos del Diario Oficial S.A.",null,null,null,null,null,null,null,null,null,null,null,null,null,"Arcomet S.A.",null,null,null,null,null,null,"ARICA Y PARINACOTA",null,null,null,{"$f":"TRIM($A2)","v":"AGRICULTURA"}]
["BIENES NACIONALES","BANCO ESTADO DE CHILE","COMISIÓN NACIONAL DE RIEGO",null,null,"CAJA DE PREVISIÓN DE LA DEFENSA NACIONAL","CORPORACIÓN DE FOMENTO DE LA PRODUCCIÓN","COMISIÓN NACIONAL DE INVESTIGACIÓN CIENTÍFICA Y TECNOLÓGICA","COMISIÓN NACIONAL DE ENERGÍA","DIRECCIÓN DE COMPRAS Y CONTRATACIÓN PÚBLICA","GOBIERNO REGIONAL DE ANTOFAGASTA","CORPORACIÓN DE ASISTENCIA JUDICIAL REGIÓN METROPOLITANA","SUBSECRETARÍA DEL MEDIO AMBIENTE","SERVICIO NACIONAL DE GEOLOGÍA Y MINERÍA","DIRECCIÓN DE ARQUITECTURA","FONDO DE SOLIDARIDAD E INVERSIÓN SOCIAL",null,"DIRECCIÓN DE FRONTERAS Y LIMITES DEL ESTADO ","CENTRO DE REFERENCIA DE SALUD DE MAIPÚ","SUBSECRETARÍA GENERAL DE GOBIERNO",null,"SUBSECRETARÍA DE LA MUJER Y LA EQUIDAD DE GÉNERO","DIRECCIÓN GENERAL DE CRÉDITO PRENDARIO ","SUBSECRETARÍA DE TELECOMUNICACIONES","SERVIU METROPOLITANO","SUBSECRETARÍA DE DEPORTES","INFRAESTRUCTURA Y REGULACIÓN",null,"Sisdef Ltda.","BancoEstado S.A. Corredores de Bolsa S.A.",null,null,"Asociación Garantizadora de Pensiones",null,null,null,null,"Empresa de Transporte Suburbano de Pasajeros S.A. (Transub S.A.)",null,null,"Cia. Minera Quebrada Blanca S.A.",null,"Biocomsa S.A.","Empresa Periodística La Voz S.A.",null,null,null,null,null,null,null,null,null,null,null,null,null,"Fundac S.A.",null,null,null,null,null,null,"TARAPACÁ",null,null,null,{"$f":"TRIM($A3)","v":"BIENES NACIONALES"}]
["CONSEJO NACIONAL DE LA CULTURA Y LAS ARTES","CASA DE MONEDA","CORPORACIÓN NACIONAL FORESTAL",null,null,"DEFENSA CIVIL DE CHILE","FISCALÍA NACIONAL ECONÓMICA","CONSEJO NACIONAL DE EDUCACIÓN","SUBSECRETARÍA DE ENERGÍA","DIRECCIÓN DE PRESUPUESTOS","GOBIERNO REGIONAL DE ARICA Y PARINACOTA","CORPORACIÓN DE ASISTENCIA JUDICIAL TARAPACÁ Y ANTOFAGASTA","SUPERINTENDENCIA DEL MEDIO AMBIENTE","SUBSECRETARÍA DE MINERÍA","DIRECCIÓN DE CONTABILIDAD Y FINANZAS","INSTITUTO NACIONAL DE LA JUVENTUD",null,"DIRECCIÓN GENERAL DE RELACIONES ECONÓMICAS INTERNACIONALES ","CENTRO DE REFERENCIA DE SALUD DE PEÑALOLÉN CORDILLERA ORIENTE",null,null,null,"INSTITUTO DE PREVISIÓN SOCIAL ","SUBSECRETARÍA DE TRANSPORTES","SERVIU REGIÓN I",null,"TOMA DE RAZON Y REGISTRO",null,"Empresa Nacional de Aeronáutica (ENAER)","BancoEstado Servicios de Cobranza S.A.",null,null,"Biosigma S.A.",null,null,null,null,"Ferrocarril de Arica a La Paz S.A.",null,null,"Cia. Minera Carmen de Andacollo S.A.",null,"Compañía Hidrógeno del BíoBío S.A.","Distribuidora Vía Directa S. A.",null,null,null,null,null,null,null,null,null,null,null,null,null,"S2T S.A.",null,null,null,null,null,null,"ANTOFAGASTA",null,null,null,{"$f":"TRIM($A4)","v":"CONSEJO NACIONAL DE LA CULTURA Y LAS ARTES"}]
["DEFENSA NACIONAL","COMERCIALIZADORA DE TRIGO","FUNDACIÓN DE COMUNICACIÓN, CAPACITACIÓN Y CULTURA DEL AGRO",null,null,"DIRECCIÓN GENERAL DE AERONÁUTICA CIVIL","INSTITUTO NACIONAL DE ESTADÍSTICAS","DIRECCIÓN DE BIBLIOTECAS, ARCHIVOS Y MUSEOS","SUPERINTENDENCIA DE ELECTRICIDAD Y COMBUSTIBLES","DIRECCIÓN NACIONAL DEL SERVICIO CIVIL","GOBIERNO REGIONAL DE ATACAMA","CORPORACIÓN DE ASISTENCIA JUDICIAL VALPARAÍSO",null,null,"DIRECCIÓN DE OBRAS HIDRÁULICAS","SERVICIO NACIONAL DE LA DISCAPACIDAD",null,"INSTITUTO ANTÁRTICO CHILENO ","FONDO NACIONAL DE SALUD",null,null,null,"INSTITUTO DE SEGURIDAD LABORAL ",null,"SERVIU REGIÓN II",null,"AUDITORÍAS ESPECIALES",null,null,"BancoEstado Microempresas S.A., Asesorías Financieras",null,null,"Centro de Especialidades Médicas Río Blanco Ltda.",null,null,null,null,"Ferrocarriles Suburbanos de Concepción S.A.",null,null,null,null,"Compañía Latinoamericana Petrolera S.A.",null,null,null,null,null,null,null,null,null,null,null,null,null,null,null,null,null,null,null,null,null,"ATACAMA",null,null,null,"DEFENSA NACIONAL"]
["DEPORTE","CODELCO","FUNDACIÓN PARA LA INNOVACIÓN AGRARIA",null,null,"DIRECCIÓN GENERAL DE MOVILIZACIÓN NACIONAL","INSTITUTO NACIONAL DE PROPIEDAD INDUSTRIAL","JUNTA NACIONAL DE AUXILIO ESCOLAR Y BECAS",null,"SERVICIO DE IMPUESTOS INTERNOS","GOBIERNO REGIONAL DE AYSÉN","DEFENSORÍA PENAL PÚBLICA",null,null,"DIRECCIÓN DE OBRAS PORTUARIAS","SERVICIO NACIONAL DEL ADULTO MAYOR",null,"SUBSECRETARÍA DE RELACIONES EXTERIORES","HOSPITAL PADRE ALBERTO HURTADO",null,null,null,"SERVICIO NACIONAL DE CAPACITACIÓN Y EMPLEO ",null,"SERVIU REGIÓN III",null,"CGR REGIONAL",null,null,"BancoEstado S.A. Administradora General de Fondos",null,null,"Chile Copper Limited",null,null,null,null,"Infraestructura y Tráfico Ferroviario S.A.",null,null,null,null,"Empresa Nacional de Geotermia S.A.",null,null,null,null,null,null,null,null,null,null,null,null,null,null,null,null,null,null,null,null,null,"COQUIMBO",null,null,null,{"$f":"TRIM($A8)","v":"ECONOMÍA FOMENTO Y TURISMO"}]
["DESARROLLO SOCIAL","DESARROLLO DE TECNOLOGÍA Y SISTEMAS LIMITADA","INSTITUTO DE DESARROLLO AGROPECUARIO",null,null,"ESTADO MAYOR CONJUNTO","SERVICIO DE COOPERACIÓN TÉCNICA","JUNTA NACIONAL DE JARDINES INFANTILES",null,"SERVICIO DE TESORERÍAS","GOBIERNO REGIONAL DE BÍO-BÍO","GENDARMERÍA DE CHILE",null,null,"DIRECCIÓN DE PLANEAMIENTO","SUBSECRETARÍA DE EVALUACIÓN SOCIAL",null,null,"INSTITUTO DE SALUD PÚBLICA DE CHILE",null,null,null,"SUBSECRETARÍA DE PREVISIÓN SOCIAL ",null,"SERVIU REGIÓN IV",null,null,null,null,"BancoEstado Contacto 24 Horas S.A.",null,null,"CK Metall Agentur GmbH",null,null,null,null,"Inmobiliaria Paseo de la Estación S. A.",null,null,null,null,"ENAP Refinerías S.A. (ERSA)",null,null,null,null,null,null,null,null,null,null,null,null,null,null,null,null,null,null,null,null,null,"VALPARAÍSO",null,null,null,"EDUCACIÓN"]
["ECONOMÍA FOMENTO Y TURISMO","CONCESIONARIA DE SERVICIOS SANITARIOS","INSTITUTO FORESTAL",null,null,"SUBSECRETARÍA DE DEFENSA","SERVICIO NACIONAL DE PESCA Y ACUICULTURA","SUBSECRETARÍA DE EDUCACIÓN",null,"SERVICIO NACIONAL DE ADUANAS","GOBIERNO REGIONAL DE COQUIMBO","SERVICIO DE REGISTRO CIVIL E IDENTIFICACIÓN",null,null,"DIRECCIÓN DE VIALIDAD","SUBSECRETARÍA DE SERVICIOS SOCIALES",null,null,"SERVICIO DE SALUD ACONCAGUA",null,null,null,"SUBSECRETARÍA DEL TRABAJO",null,"SERVIU REGIÓN V",null,null,null,null,"BancoEstado Centro de Servicios S.A.",null,null,"Clínica Río Blanco S.A.",null,null,null,null,"Inmobiliria Nueva Vía S.A.",null,null,null,null,"Enap Sipetrol (UK) Limited",null,null,null,null,null,null,null,null,null,null,null,null,null,null,null,null,null,null,null,null,null,"O'HIGGINS",null,null,null,"ENERGÍA"]
["EDUCACIÓN","CORREOS DE CHILE","INSTITUTO INVESTIGACIONES AGROPECUARIAS",null,null,"SUBSECRETARÍA PARA LAS FUERZAS ARMADAS","SERVICIO NACIONAL DE TURISMO","SUPERINTENDENCIA DE EDUCACIÓN",null,"SUBSECRETARÍA DE HACIENDA","GOBIERNO REGIONAL DE LA ARAUCANÍA","SERVICIO MÉDICO LEGAL",null,null,"DIRECCIÓN GENERAL DE AGUAS",null,null,null,"SERVICIO DE SALUD ANTOFAGASTA",null,null,null,"SUPERINTENDENCIA DE PENSIONES ",null,"SERVIU REGIÓN VI",null,null,null,null,"Sociedad de Servicios Transaccionales Caja Vecina S.A.",null,null,"Codelco do Brasil Mineracao Limitada",null,null,null,null,"Metro Regional de Valparaíso S.A.",null,null,null,null,"Enap Sipetrol Argentina S.A.",null,null,null,null,null,null,null,null,null,null,null,null,null,null,null,null,null,null,null,null,null,"MAULE",null,null,null,"HACIENDA"]
["ENERGÍA","FERROCARRILES DEL ESTADO","OFICINA DE ESTUDIOS Y POLÍTICAS AGRARIAS",null,null,null,"SERVICIO NACIONAL DEL CONSUMIDOR",null,null,"SUPERINTENDENCIA DE BANCOS E INSTITUCIONES FINANCIERAS","GOBIERNO REGIONAL DE LIBERTADOR BERNARDO O´HIGGINS","SERVICIO NACIONAL DE MENORES",null,null,"DIRECCIÓN GENERAL DE OBRAS PÚBLICAS",null,null,null,"SERVICIO DE SALUD ARAUCANÍA NORTE",null,null,null,"SUPERINTENDENCIA DE SEGURIDAD SOCIAL ",null,"SERVIU REGIÓN VII",null,null,null,null,"Capital de Riesgo S.A.",null,null,"Codelco Group (USA) INC.",null,null,null,null,"Servicio de Trenes Regionales Terra S.A",null,null,null,null,"Enap Sipetrol S.A.",null,null,null,null,null,null,null,null,null,null,null,null,null,null,null,null,null,null,null,null,null,"BÍO-BÍO",null,null,null,"INTERIOR Y SEGURIDAD PÚBLICA"]
["HACIENDA","SERVICIOS SANITARIOS LAGO PEÑUELAS","SERVICIO AGRÍCOLA Y GANADERO",null,null,null,"SUBSECRETARÍA DE ECONOMÍA Y EMPRESAS DE MENOR TAMAÑO",null,null,"SUPERINTENDENCIA DE CASINOS DE JUEGO","GOBIERNO REGIONAL DE LOS LAGOS","SUBSECRETARÍA DE JUSTICIA",null,null,"FISCALÍA MINISTERIO DE OBRAS PUBLICAS",null,null,null,"SERVICIO DE SALUD ARAUCANÍA SUR",null,null,null,"CHILE VALORA",null,"SERVIU REGIÓN VIII",null,null,null,null,"Sociedad de Promoción de Productos Bancarios S.A.",null,null,"Codelco International Limited",null,null,null,null,"Trenes Metropolitanos S.A. ™",null,null,null,null,"Energía Andina S.A.",null,null,null,null,null,null,null,null,null,null,null,null,null,null,null,null,null,null,null,null,null,"ARAUCANÍA",null,null,null,"JUSTICIA"]
["INTERIOR Y SEGURIDAD PÚBLICA","METRO S.A","SUBSECRETARÍA DE AGRICULTURA",null,null,null,"SUBSECRETARÍA DE PESCA Y ACUICULTURA",null,null,"SUPERINTENDENCIA DE VALORES Y SEGUROS","GOBIERNO REGIONAL DE LOS RÍOS","SUBSECRETARÍA DE DERECHOS HUMANOS",null,null,"INSTITUTO NACIONAL DE HIDRÁULICA",null,null,null,"SERVICIO DE SALUD ARAUCO",null,null,null,null,null,"SERVIU REGIÓN IX",null,null,null,null,"Operadora de Tarjetas de Créditos Nexus S.A.",null,null,"Codelco Küpferhandel GmbH",null,null,null,null,null,null,null,null,null,"Energía Concón S.A. (Enercon)",null,null,null,null,null,null,null,null,null,null,null,null,null,null,null,null,null,null,null,null,null,"LOS RÍOS",null,null,null,"MEDIO AMBIENTE"]
["JUSTICIA","EMPRESA NACIONAL DE MINERÍA",null,null,null,null,"SUBSECRETARÍA DE TURISMO",null,null,"UNIDAD ADMINISTRADORA DE LOS TRIBUNALES TRIBUTARIOS Y ADUANEROS","GOBIERNO REGIONAL DE MAGALLANES Y ANTÁRTICA CHILENA",null,null,null,"SUBSECRETARÍA DE OBRAS PÚBLICAS",null,null,null,"SERVICIO DE SALUD ARICA",null,null,null,null,null,"SERVIU REGIÓN X",null,null,null,null,"Combanc S.A.",null,null,"Codelco Metals INC.",null,null,null,null,null,null,null,null,null,"Éteres y Alcoholes S.A.",null,null,null,null,null,null,null,null,null,null,null,null,null,null,null,null,null,null,null,null,null,"LOS LAGOS",null,null,null,"MINERÍA"]
["MEDIO AMBIENTE","EMPRESA NACIONAL DEL CARBÓN S.A",null,null,null,null,"SUPERINTENDENCIA DE INSOLVENCIA Y REEMPRENDIMIENTO",null,null,"UNIDAD DE ANÁLISIS FINANCIERO","GOBIERNO REGIONAL DE MAULE",null,null,null,"SUPERINTENDENCIA DE SERVICIOS SANITARIOS",null,null,null,"SERVICIO DE SALUD ATACAMA",null,null,null,null,null,"SERVIU REGIÓN XI",null,null,null,null,"Administrador Financiero Transantiago S.A.",null,null,"Codelco Services Limited",null,null,null,null,null,null,null,null,null,"Forenergy S.A.",null,null,null,null,null,null,null,null,null,null,null,null,null,null,null,null,null,null,null,null,null,"AYSÉN",null,null,null,"OBRAS PÚBLICAS"]
["MINERÍA","EMPRESA NACIONAL DEL PETRÓLEO",null,null,null,null,null,null,null,null,"GOBIERNO REGIONAL DE TARAPACÁ",null,null,null,null,null,null,null,"SERVICIO DE SALUD AYSÉN",null,null,null,null,null,"SERVIU REGIÓN XII",null,null,null,null,null,null,null,"Codelco Technologies Limited",null,null,null,null,null,null,null,null,null,"Gas de Chile S.A.",null,null,null,null,null,null,null,null,null,null,null,null,null,null,null,null,null,null,null,null,null,"MAGALLANES",null,null,null,{"$f":"TRIM($A7)","v":"DESARROLLO SOCIAL"}]
["OBRAS PÚBLICAS","PORTUARIA ANTOFAGASTA",null,null,null,null,null,null,null,null,"GOBIERNO REGIONAL DE VALPARAÍSO",null,null,null,null,null,null,null,"SERVICIO DE SALUD BERNARDO OHIGGINS",null,null,null,null,null,"SERVIU REGIÓN XIV",null,null,null,null,null,null,null,"Codelco USA INC.",null,null,null,null,null,null,null,null,null,"Gasoducto del Pacífico (Argentina) S.A.",null,null,null,null,null,null,null,null,null,null,null,null,null,null,null,null,null,null,null,null,null,"METROPOLITANA",null,null,null,{"$f":"TRIM($A17)","v":"PRESIDENCIA DE LA REPÚBLICA"}]
["PRESIDENCIA DE LA REPÚBLICA","PORTUARIA ARICA",null,null,null,null,null,null,null,null,"GOBIERNO REGIONAL METROPOLITANO DE SANTIAGO",null,null,null,null,null,null,null,"SERVICIO DE SALUD BÍO BÍO",null,null,null,null,null,"SERVIU REGIÓN XV",null,null,null,null,null,null,null,"CoMoTech S.A.",null,null,null,null,null,null,null,null,null,"Gasoducto del Pacífico (Cayman) Ltd.",null,null,null,null,null,null,null,null,null,null,null,null,null,null,null,null,null,null,null,null,null,"NIVEL CENTRAL",null,null,null,"RELACIONES EXTERIORES"]
["RELACIONES EXTERIORES","PORTUARIA AUSTRAL",null,null,null,null,null,null,null,null,"OFICINA NACIONAL DE EMERGENCIA",null,null,null,null,null,null,null,"SERVICIO DE SALUD CHILOÉ",null,null,null,null,null,"SUBSECRETARÍA DE VIVIENDA Y URBANISMO",null,null,null,null,null,null,null,"Compañía Contractual Minera los Andes CCMLA",null,null,null,null,null,null,null,null,null,"Gasoducto del Pacífico (Chile) S.A.",null,null,null,null,null,null,null,null,null,null,null,null,null,null,null,null,null,null,null,null,null,null,null,null,null,"SALUD"]
["SALUD","PORTUARIA CHACABUCO",null,null,null,null,null,null,null,null,"SERVICIO ELECTORAL",null,null,null,null,null,null,null,"SERVICIO DE SALUD CONCEPCIÓN",null,null,null,null,null,null,null,null,null,null,null,null,null,"Compañía Minera Picacho SCM",null,null,null,null,null,null,null,null,null,"Geotérmica del Norte S.A.",null,null,null,null,null,null,null,null,null,null,null,null,null,null,null,null,null,null,null,null,null,null,null,null,null,"SECRETARÍA GENERAL DE GOBIERNO"]
["SECRETARÍA GENERAL DE GOBIERNO","PORTUARIA COQUIMBO",null,null,null,null,null,null,null,null,"SERVICIO NACIONAL PARA LA PREVENCIÓN Y REHABILITACIÓN DEL CONSUMO DE DROGAS Y ALCOHOL",null,null,null,null,null,null,null,"SERVICIO DE SALUD COQUIMBO",null,null,null,null,null,null,null,null,null,null,null,null,null,"Complejo Portuario Mejillones S.A.",null,null,null,null,null,null,null,null,null,"GNL Chile S.A.",null,null,null,null,null,null,null,null,null,null,null,null,null,null,null,null,null,null,null,null,null,null,null,null,null,"SECRETARÍA GENERAL DE LA PRESIDENCIA DE LA REPÚBLICA"]
["SECRETARÍA GENERAL DE LA PRESIDENCIA DE LA REPÚBLICA","PORTUARIA IQUIQUE",null,null,null,null,null,null,null,null,"SUBSECRETARÍA DE DESARROLLO REGIONAL Y ADMINISTRATIVO",null,null,null,null,null,null,null,"SERVICIO DE SALUD IQUIQUE",null,null,null,null,null,null,null,null,null,null,null,null,null,"Cooper Partners Investment CL",null,null,null,null,null,null,null,null,null,"GNL Quintero S.A.",null,null,null,null,null,null,null,null,null,null,null,null,null,null,null,null,null,null,null,null,null,null,null,null,null,"MUJER Y LA EQUIDAD DE GÉNERO"]
["MUJER Y LA EQUIDAD DE GÉNERO","PORTUARIA PUERTO MONTT",null,null,null,null,null,null,null,null,"SUBSECRETARÍA DEL INTERIOR",null,null,null,null,null,null,null,"SERVICIO DE SALUD MAGALLANES",null,null,null,null,null,null,null,null,null,null,null,null,null,"Deutsche Giessdraht GmbH (Alemania)",null,null,null,null,null,null,null,null,null,"Golfo de Guayaquil Petroenap Compañía de Economía Mixta (Ecuador)",null,null,null,null,null,null,null,null,null,null,null,null,null,null,null,null,null,null,null,null,null,null,null,null,null,"TRABAJO Y PREVISIÓN SOCIAL"]
["TRABAJO Y PREVISIÓN SOCIAL","PORTUARIA SAN ANTONIO",null,null,null,null,null,null,null,null,"SUBSECRETARÍA DE PREVENCION DEL DELITO",null,null,null,null,null,null,null,"SERVICIO DE SALUD MAULE",null,null,null,null,null,null,null,null,null,null,null,null,null,"Ecometales Limited",null,null,null,null,null,null,null,null,null,"Innergy Holding S.A.",null,null,null,null,null,null,null,null,null,null,null,null,null,null,null,null,null,null,null,null,null,null,null,null,null,"TRANSPORTES Y TELECOMUNICACIONES"]
["TRANSPORTES Y TELECOMUNICACIONES","PORTUARIA TALCAHUANO-SAN VICENTE",null,null,null,null,null,null,null,null,"POLICIA DE INVESTIGACIONES",null,null,null,null,null,null,null,"SERVICIO DE SALUD METROPOLITANO CENTRAL",null,null,null,null,null,null,null,null,null,null,null,null,null,"EcoSea S.A",null,null,null,null,null,null,null,null,null,"Inversiones Electrogas S.A.",null,null,null,null,null,null,null,null,null,null,null,null,null,null,null,null,null,null,null,null,null,null,null,null,null,"VIVIENDA Y URBANISMO"]
["VIVIENDA Y URBANISMO","PORTUARIA VALPARAÍSO",null,null,null,null,null,null,null,null,"CARABINEROS DE CHILE",null,null,null,null,null,null,null,"SERVICIO DE SALUD METROPOLITANO NORTE",null,null,null,null,null,null,null,null,null,null,null,null,null,"Edelnor S.A.",null,null,null,null,null,null,null,null,null,"Manu Peru Holding S.A.",null,null,null,null,null,null,null,null,null,null,null,null,null,null,null,null,null,null,null,null,null,null,null,null,null,"EMPRESAS ESTADO"]
["EMPRESAS ESTADO","ESSAL S.A.",null,null,null,null,null,null,null,null,"SERVICIO DE GOBIERNO INTERIOR",null,null,null,null,null,null,null,"SERVICIO DE SALUD METROPOLITANO OCCIDENTE",null,null,null,null,null,null,null,null,null,null,null,null,null,"Ejecutora Proyecto Hospital del Cobre Calama S.A.",null,null,null,null,null,null,null,null,null,"Norgas S.A.",null,null,null,null,null,null,null,null,null,null,null,null,null,null,null,null,null,null,null,null,null,null,null,null,null,{"$f":"TRIM(#REF!)","v":{"$error":"#REF!"}}]
[null,"ESSBÍO S.A.",null,null,null,null,null,null,null,null,null,null,null,null,null,null,null,null,"SERVICIO DE SALUD METROPOLITANO ORIENTE",null,null,null,null,null,null,null,null,null,null,null,null,null,"Elaboradora de Cobre Chilena Limitada",null,null,null,null,null,null,null,null,null,"Oleoducto Trasandino (Argentina) S.A.",null,null,null,null,null,null,null,null,null,null,null,null,null,null,null,null,null,null,null,null,null,null,null,null,null,{"$f":"TRIM($A27)","v":""}]
[null,"ESVAL S.A.",null,null,null,null,null,null,null,null,null,null,null,null,null,null,null,null,"SERVICIO DE SALUD METROPOLITANO SUR",null,null,null,null,null,null,null,null,null,null,null,null,null,"Energía Minera S.A.",null,null,null,null,null,null,null,null,null,"Oleoducto Trasandino (Chile) S.A."]
[null,"FÁBRICA Y MAESTRANZAS DEL EJÉRCITO",null,null,null,null,null,null,null,null,null,null,null,null,null,null,null,null,"SERVICIO DE SALUD METROPOLITANO SUR ORIENTE",null,null,null,null,null,null,null,null,null,null,null,null,null,"Exploraciones Mineras Andinas S.A.",null,null,null,null,null,null,null,null,null,"Petro Servicio Corp. S.A. (Argentina)"]
[null,"POLLA CHILENA DE BENEFICENCIA",null,null,null,null,null,null,null,null,null,null,null,null,null,null,null,null,"SERVICIO DE SALUD ÑUBLE",null,null,null,null,null,null,null,null,null,null,null,null,null,"GNL Mejillones S.A.",null,null,null,null,null,null,null,null,null,"Petropower Energia Ltda."]
[null,"PUERTO MADERO IMPRESORES",null,null,null,null,null,null,null,null,null,null,null,null,null,null,null,null,"SERVICIO DE SALUD OSORNO",null,null,null,null,null,null,null,null,null,null,null,null,null,"Inca de Oro S.A.",null,null,null,null,null,null,null,null,null,"Petrosul S.A."]
[null,"SOCIEDAD AGRÍCOLA SACOR",null,null,null,null,null,null,null,null,null,null,null,null,null,null,null,null,"SERVICIO DE SALUD RELONCAVÍ",null,null,null,null,null,null,null,null,null,null,null,null,null,"Innovaciones en Cobre S.A.",null,null,null,null,null,null,null,null,null,"Primax Ecuador S.A."]
[null,"SOCIEDAD AGRÍCOLA Y SERVICIOS ISLA DE PASCUA LTDA",null,null,null,null,null,null,null,null,null,null,null,null,null,null,null,null,"SERVICIO DE SALUD TALCAHUANO",null,null,null,null,null,null,null,null,null,null,null,null,null,"Instituto de Innovación en Minería y Metalurgia S.A.",null,null,null,null,null,null,null,null,null,"Primax Holding S.A. (Ecuador)"]
[null,"TELEVISIÓN NACIONAL DE CHILE",null,null,null,null,null,null,null,null,null,null,null,null,null,null,null,null,"SERVICIO DE SALUD VALDIVIA",null,null,null,null,null,null,null,null,null,null,null,null,null,"Inversiones Mejillones 1 S.A.",null,null,null,null,null,null,null,null,null,"Primax S.A. (Perú)"]
[null,"ZONA FRANCA DE IQUIQUE S.A",null,null,null,null,null,null,null,null,null,null,null,null,null,null,null,null,"SERVICIO DE SALUD VALPARAÍSO Y SAN ANTONIO",null,null,null,null,null,null,null,null,null,null,null,null,null,"Inversiones Mejillones 2 S.A.",null,null,null,null,null,null,null,null,null,"Productora de Diesel S.A. (Prodisa)"]
[null,null,null,null,null,null,null,null,null,null,null,null,null,null,null,null,null,null,"SERVICIO DE SALUD VIÑA DEL MAR Y QUILLOTA",null,null,null,null,null,null,null,null,null,null,null,null,null,"Inversiones Tocopilla 2A S.A.",null,null,null,null,null,null,null,null,null,"Sipetrol International (Uruguay) S.A."]
[null,null,null,null,null,null,null,null,null,null,null,null,null,null,null,null,null,null,"SUBSECRETARÍA DE REDES ASISTENCIALES",null,null,null,null,null,null,null,null,null,null,null,null,null,"Inversiones Tocopilla 2B Ltda.",null,null,null,null,null,null,null,null,null,"Sociedad Internacional Petrolera Enap Ecuador S.A."]
[null,null,null,null,null,null,null,null,null,null,null,null,null,null,null,null,null,null,"SUBSECRETARÍA DE SALUD",null,null,null,null,null,null,null,null,null,null,null,null,null,"Isapre Chuquicamata Ltda.",null,null,null,null,null,null,null,null,null,"Sociedad Nacional de Oleoductos S.A."]
[null,null,null,null,null,null,null,null,null,null,null,null,null,null,null,null,null,null,"SUPERINTENDENCIA DE SALUD",null,null,null,null,null,null,null,null,null,null,null,null,null,"Isapre Río blanco Ltda.",null,null,null,null,null,null,null,null,null,"Sonamar S.A."]
[null,null,null,null,null,null,null,null,null,null,null,null,null,null,null,null,null,null,null,null,null,null,null,null,null,null,null,null,null,null,null,null,"Isapre San Lorenzo Ltda.",null,null,null,null,null,null,null,null,null,"Terminales Marítimas Patagónicas S.A. (Argentina)"]
[null,null,null,null,null,null,null,null,null,null,null,null,null,null,null,null,null,null,null,null,null,null,null,null,null,null,null,null,null,null,null,null,"Kairos Mining S.A."]
[null,null,{"$f":"COUNTA(C2:C41)","v":11},{"$f":"COUNTA(D2:D41)","v":1},1,8,13,8,4,13,25,11,3,3,13,7,1,5,38,2,1,2,10,3,17,2,null,null,null,null,null,null,"Minera Gaby S.A."]
[null,null,"AGRICULTURA","BIENES NACIONALES ","CONSEJO NACIONAL DE LA CULTURA Y LAS ARTES ","DEFENSA NACIONAL","ECONOMÍA, FOMENTO Y TURISMO ","EDUCACIÓN","ENERGÍA","HACIENDA","INTERIOR Y SEGURIDAD PUBLICA","JUSTICIA","MEDIO AMBIENTE ","MINERÍA","OBRAS PÚBLICAS ","DESARROLLO SOCIAL","PRESIDENCIA DE LA REPUBLICA","RELACIONES EXTERIORES ","SALUD","SECRETARIA GENERAL DE GOBIERNO ","SECRETARIA GENERAL DE LA PRESIDENCIA DE LA REPUBLICA ","SERVICIO NACIONAL DE LA MUJER ","TRABAJO Y PREVISIÓN SOCIAL","TRANSPORTES Y TELECOMUNICACIONES ","VIVIENDA Y URBANISMO","DEPORTE",null,null,null,null,null,null,"Minning Information Communication and Monitoring S.A. (MICOMO S.A.)"]
[null,null,null,null,null,null,null,null,null,null,null,null,null,null,null,null,null,null,null,null,null,null,null,null,null,null,null,null,null,null,null,null,"MIRS S.A"]
[null,null,null,null,null,null,null,null,null,null,null,null,null,null,null,null,null,null,null,null,null,null,null,null,null,null,null,null,null,null,null,null,"Prestadora de Servicios San Lorenzo Ltda."]
[null,null,null,null,null,null,null,null,null,null,null,null,null,null,null,null,null,null,null,null,null,null,null,null,null,null,null,null,null,null,null,null,"Santiago de Río Grande S.A."]
[null,null,null,null,null,null,null,null,null,null,null,null,null,null,null,null,null,null,null,null,null,null,null,null,null,null,null,null,null,null,null,null,"Sociedad contractual minera El Abra"]
[null,null,null,null,null,null,null,null,null,null,null,null,null,null,null,null,null,null,null,null,null,null,null,null,null,null,null,null,null,null,null,null,"Sociedad contractual minera Purén"]
[null,null,null,null,null,null,null,null,null,null,null,null,null,null,null,null,null,null,null,null,null,null,null,null,null,null,null,null,null,null,null,null,"Sociedad contractual minera Sierra Mariposa"]
[null,null,null,null,null,null,null,null,null,null,null,null,null,null,null,null,null,null,null,null,null,null,null,null,null,null,null,null,null,null,null,null,"Sociedad de Inversiones Copperfield Limitada"]
[null,null,null,null,null,null,null,null,null,null,null,null,null,null,null,null,null,null,null,null,null,null,null,null,null,null,null,null,null,null,null,null,"Termoeléctrica Farellones S.A."]
[]
[]
[]
[]
["SUBDIVISIONES",null,{"$f":"TRIM(C$1)","v":"AGRICULTURA"},{"$f":"TRIM(D$1)","v":"BIENES NACIONALES"},"CONSEJO NACIONAL DE LA CULTURA Y LAS ARTES","DEFENSA NACIONAL","ECONOMÍA FOMENTO Y TURISMO","EDUCACIÓN","ENERGÍA","HACIENDA","INTERIOR Y SEGURIDAD PÚBLICA","JUSTICIA","MEDIO AMBIENTE","MINERÍA","OBRAS PÚBLICAS","DESARROLLO SOCIAL","PRESIDENCIA DE LA REPÚBLICA","RELACIONES EXTERIORES","SALUD","SECRETARÍA GENERAL DE GOBIERNO","SECRETARÍA GENERAL DE LA PRESIDENCIA DE LA REPÚBLICA","MUJER Y LA EQUIDAD DE GÉNERO","TRABAJO Y PREVISIÓN SOCIAL","TRANSPORTES Y TELECOMUNICACIONES","VIVIENDA Y URBANISMO","DEPORTE",{"$f":"TRIM(AA$1)","v":"DIVISION"},"AGUAS ANDINAS S.A.","ASTILLEROS Y MAESTRANZAS DE LA ARMADA","BANCO ESTADO DE CHILE","CASA DE MONEDA","COMERCIALIZADORA DE TRIGO","CODELCO","DESARROLLO DE TECNOLOGÍA Y SISTEMAS LIMITADA","CONCESIONARIA DE SERVICIOS SANITARIOS","ABASTECIMIENTO DE ZONAS AISLADAS","CORREOS DE CHILE","FERROCARRILES DEL ESTADO","SERVICIOS SANITARIOS LAGO PEÑUELAS","METRO S.A","EMPRESA NACIONAL DE MINERÍA","EMPRESA NACIONAL DEL CARBÓN S.A","EMPRESA NACIONAL DEL PETRÓLEO","LA NACIÓN S.A.","PORTUARIA ANTOFAGASTA","PORTUARIA ARICA","PORTUARIA AUSTRAL","PORTUARIA CHACABUCO","PORTUARIA COQUIMBO","PORTUARIA IQUIQUE","PORTUARIA PUERTO MONTT","PORTUARIA SAN ANTONIO","PORTUARIA TALCAHUANO-SAN VICENTE","PORTUARIA VALPARAÍSO","ESSAL S.A.","ESSBÍO S.A.","ESVAL S.A.","FÁBRICA Y MAESTRANZAS DEL EJÉRCITO","POLLA CHILENA DE BENEFICENCIA","PUERTO MADERO IMPRESORES","SOCIEDAD AGRÍCOLA SACOR","SOCIEDAD AGRÍCOLA Y SERVICIOS ISLA DE PASCUA LTDA","TELEVISIÓN NACIONAL DE CHILE","ZONA FRANCA DE IQUIQUE S.A","REGION","","","","","","","",""]
[]
["CAJA PREVISIÓN DEFENSA NACIONAL","SERVICIO NACIONAL DE TURISMO","SERVICIO DE GOBIERNO INTERIOR","SERVICIO DE SALUD ACONCAGUA","SERVICIO DE SALUD ANTOFAGASTA","SERVICIO DE SALUD ARAUCANÍA NORTE","SERVICIO DE SALUD ARAUCANÍA SUR","SERVICIO DE SALUD ARAUCO","SERVICIO DE SALUD ARICA","SERVICIO DE SALUD ATACAMA","SERVICIO DE SALUD AYSÉN","SERVICIO DE SALUD BERNARDO O'HIGGINS","SERVICIO DE SALUD BÍO-BÍO","SERVICIO DE SALUD CHILOÉ","SERVICIO DE SALUD CONCEPCIÓN","SERVICIO DE SALUD COQUIMBO","SERVICIO DE SALUD IQUIQUE","SERVICIO DE SALUD MAGALLANES","SERVICIO DE SALUD MAULE","SERVICIO DE SALUD METROPOLITANO CENTRAL","SERVICIO DE SALUD METROPOLITANO NORTE","SERVICIO DE SALUD METROPOLITANO OCCIDENTE","SERVICIO DE SALUD METROPOLITANO ORIENTE","SERVICIO DE SALUD METROPOLITANO SUR","SERVICIO DE SALUD METROPOLITANO SUR ORIENTE",null,"SERVICIO DE SALUD ÑUBLE","SERVICIO DE SALUD OSORNO","SERVICIO DE SALUD RELONCAVÍ","SERVICIO DE SALUD TALCAHUANO","SERVICIO DE SALUD VALDIVIA","SERVICIO DE SALUD VALPARAÍSO Y SAN ANTONIO","SERVICIO DE SALUD VIÑA DEL MAR Y QUILLOTA","SUBSECRETARÍA DE SALUD","SUBSECRETARÍA DE AGRICULTURA","SUBSECRETARÍA PARA LAS FUERZAS ARMADAS","SUBSECRETARÍA DE ECONOMÍA Y EMPRESAS DE MENOR TAMAÑO ","SUBSECRETARÍA DE EDUCACIÓN","SUBSECRETARÍA DE ENERGÍA","SUBSECRETARÍA DE HACIENDA","SUBSECRETARÍA DE JUSTICIA","SUBSECRETARÍA DE MINERÍA","SUBSECRETARÍA DE OBRAS PÚBLICAS","SUBSECRETARÍA DE SERVICIOS SOCIALES","SUBSECRETARÍA  GENERAL DE GOBIERNO","SUBSECRETARÍA DEL INTERIOR","SUBSECRETARÍA DEL TRABAJO ","SUBSECRETARÍA DE TRANSPORTES ","SUBSECRETARÍA DE VIVIENDA Y URBANISMO ","SUBSECRETARÍA DE BIENES NACIONALES","SUBSECRETARÍA DEL MEDIO AMBIENTE","SUBSECRETARÍA DE RELACIONES EXTERIORES","SUBSECRETARÍA GENERAL DE LA PRESIDENCIA DE LA REPUBLICA","SERVICIO DE TESORERÍAS","SUBSECRETARÍA DE DEFENSA","CORPORACIÓN DE FOMENTO DE LA PRODUCCIÓN ","SUBSECRETARÍA DE TELECOMUNICACIONES","SUBSECRETARÍA DE EVALUCIÓN SOCIAL","SUBSECRETARÍA DE DEPORTES","DIRECCIÓN DE PREVISIÓN DE CARABINEROS DE CHILE"]
["CENTRO DE REHABILITACIÓN LA FLORIDA","DIRECCIÓN NACIONAL","GOBERNACIÓN PROVINCIAL ANTÁRTICA CHILENA","DIRECCIÓN DEL SERVICIO","DIRECCIÓN DEL SERVICIO","DIRECCIÓN DEL SERVICIO","DIRECCIÓN DEL SERVICIO","DIRECCIÓN DEL SERVICIO","DIRECCIÓN DEL SERVICIO","DIRECCIÓN DEL SERVICIO","DIRECCIÓN DEL SERVICIO","DIRECCIÓN DEL SERVICIO","DIRECCIÓN DEL SERVICIO","DIRECCIÓN DEL SERVICIO","DIRECCIÓN DEL SERVICIO","DIRECCIÓN DEL SERVICIO","DIRECCIÓN DEL SERVICIO","DIRECCIÓN DEL SERVICIO","DIRECCIÓN DEL SERVICIO","DIRECCIÓN DEL SERVICIO","DIRECCIÓN DEL SERVICIO","DIRECCIÓN DEL SERVICIO","DIRECCIÓN DEL SERVICIO","DIRECCIÓN DEL SERVICIO","DIRECCIÓN DEL SERVICIO",null,"DIRECCIÓN DEL SERVICIO","DIRECCIÓN DEL SERVICIO","DIRECCIÓN DEL SERVICIO","DIRECCIÓN DEL SERVICIO","DIRECCIÓN DEL SERVICIO","DIRECCIÓN DEL SERVICIO","DIRECCIÓN DEL SERVICIO","SUBSECRETARÍA DE SALUD","SUBSECRETARÍA DE AGRICULTURA","SUBSECRETARÍA PARA LAS FUERZAS ARMADAS","SUBSECRETARÍA DE ECONOMÍA Y EMPRESAS DE MENOR TAMAÑO ","SUBSECRETARÍA DE EDUCACIÓN","SUBSECRETARÍA DE ENERGÍA","SUBSECRETARÍA DE HACIENDA","SUBSECRETARÍA DE JUSTICIA","SUBSECRETARÍA DE MINERÍA","SUBSECRETARÍA DE OBRAS PÚBLICAS","SUBSECRETARÍA DE SERVICIOS SOCIALES","SUBSECRETARÍA  GENERAL DE GOBIERNO","SUBSECRETARÍA DEL INTERIOR","SUBSECRETARÍA DEL TRABAJO ","SUBSECRETARÍA DE TRANSPORTES ","SUBSECRETARÍA DE VIVIENDA Y URBANISMO ","SUBSECRETARÍA DE BIENES NACIONALES","SUBSECRETARÍA DEL MEDIO AMBIENTE","SUBSECRETARÍA DE RELACIONES EXTERIORES","SUBSECRETARÍA GENERAL DE LA PRESIDENCIA DE LA REPUBLICA","TESORERÍA GENERAL DE LA REPÚBLICA","DIRECCIÓN ADMINISTRATIVA","COMITÉ INNOVA CHILE ","SUBSECRETARÍA DE TELECOMUNICACIONES","SUBSECRETARÍA DE EVALUACIÓN SOCIAL","SUBSECRETARÍA DE DEPORTES","DIRECCIÓN DEL SERVICIO"]
["CENTRO DE SALUD SANTIAGO","DIRECCIÓN REGIONAL DE ANTOFAGASTA","GOBERNACIÓN PROVINCIAL ANTOFAGASTA","CESFAM CORDILLERA ANDINA","HOSPITAL 21 DE MAYO - TALTAL","HOSPITAL DE COLLIPULLI","CONSULTORIO MIRAFLORES","HOSPITAL DE CONTULMO","HOSPITAL JUAN NOÉ CREVANNI","HOSPITAL  PROVINCIAL DEL HUASCO MONSEÑOR FDO. ARIZTÍA RUIZ - VALLENAR","CONSULTORIO DR. ALEJANDRO GUTIÉRREZ","HOSPITAL DE COÍNCO","COMPLEJO ASISTENCIAL DR. VÍCTOR RÍOS RUIZ - LOS ÁNGELES","HOSPITAL DE ACHAO","CENTRO DE SANGRE CONCEPCIÓN","HOSPITAL DE SALAMANCA","HOSPITAL ALTO HOSPICIO","HOSPITAL DR. AUGUSTO ESSMANN BURGOS - NATALES","HOSP. PDTE. CARLOS IBÁÑEZ DEL CAMPO - LINARES","DIRECCION DE ATENCION PRIMARIA","COMPLEJO HOSPITALARIO SAN JOSÉ (H. SAN JOSÉ - SANTIAGO)","CRS SALVADOR ALLENDE","HOSPITAL DEL SALVADOR","HOSPITAL  DE ENFERMEDADES INFECCIOSAS DR. LUCIO CÓRDOVA","COMPLEJO HOSPITALARIO DR. SÓTERO DEL RÍO",null,"CESFAM VIOLETA PARRA","HOSPITAL BASE DE OSORNO","CESFAM DE RIO NEGRO HORNOPIRÉN","HOSPITAL DE TOMÉ","CESFAM EXTERNO VALDIVIA","HOSPITAL CARLOS VAN BUREN - VALPARAÍSO","HOSPITAL ADRIANA COUSIÑO","SEREMI DE SALUD REGIÓN I","SEREMI DE AGRICULTURA REGIÓN I","EJERCITO DE CHILE","SEREMI DE ECONOMÍA REGIÓN I","SEREMI DE EDUCACIÓN REGIÓN I","SEREMI DE ENERGÍA REGIÓN I","SEREMI DE HACIENDA REGIÓN I","SEREMI DE JUSTICIA REGIÓN I","SEREMI DE MINERÍA REGIÓN I","SEREMI DE OBRAS PÚBLICAS REGIÓN I","SEREMI DE SERVICIOS SOCIALES  REGIÓN I",null,"SECRETARÍA Y ADMINISTRACIÓN GENERAL","SEREMI DEL TRABAJO Y PREVISIÓN SOCIAL  REGIÓN I","SEREMI DE TRANSPORTES Y TELECOMUNICACIONES  REGIÓN I","SEREMI DE VIVIENDA Y URBANISMO REGIÓN I","SEREMI DE BIENES NACIONALES REGIÓN I","SEREMI DE MEDIO AMBIENTE REGIÓN I",null,null,"TESORO PÚBLICO","SUBSECRETARÍA DE DEFENSA",null,null,null,"SEREMI DE DEPORTES REGIÓN I","HOSPITAL DIPRECA"]
["CENTRO DE SALUD VALPARAÍSO","DIRECCIÓN REGIONAL DE ARICA - PARINACOTA ","GOBERNACIÓN PROVINCIAL ARAUCO","CONSULTORIO GENERAL URBANO LLAY LLAY","HOSPITAL DE MEJILLONES","HOSPITAL DE LONQUIMAY","HOSPITAL DE CARAHUE","HOSPITAL DE LEBU",null,"HOSPITAL DR. FLORENCIO VARGAS - DIEGO DE ALMAGRO","CONSULTORIO VÍCTOR DOMINGO SILVA","HOSPITAL DE LITUECHE","HOSPITAL DE LAJA","HOSPITAL DE ANCUD","CESFAM VÍCTOR M. FERNÁNDEZ","HOSPITAL DR. ANTONIO TIRADO LANAS - OVALLE","HOSPITAL ERNESTO TORRES GALDAMES","HOSPITAL DR. LAUTARO NAVARRO AVARIA - PUNTA ARENAS","HOSPITAL DE CONSTITUCIÓN","HOSPITAL CLÍNICO SAN BORJA-ARRIARÁN","HOSPITAL DE TIL - TIL","HOSPITAL ADALBERTO STEEGER - TALAGANTE","HOSPITAL DR. LUIS CALVO MACKENNA","HOSPITAL BARROS LUCO TRUDEAU","HOSPITAL SAN JOSÉ DE MAIPO",null,"HOSPITAL CLÍNICO HERMINDA MARTÍN - CHILLÁN","HOSPITAL DE PUERTO OCTAY","CONSULTORIO RIO NEGRO","HOSPITAL LAS HIGUERAS - TALCAHUANO","HOSPITAL CLÍNICO REGIONAL- VALDIVIA","HOSPITAL CLAUDIO VICUÑA - SAN ANTONIO","HOSPITAL CENTRO GERIÁTRICO PAZ DE LA TARDE","SEREMI DE SALUD REGIÓN II","SEREMI DE AGRICULTURA REGIÓN II","ARMADA DE CHILE","SEREMI DE ECONOMÍA REGIÓN II","SEREMI DE EDUCACIÓN REGIÓN II","SEREMI DE ENERGÍA REGIÓN II","SEREMI DE HACIENDA REGIÓN II","SEREMI DE JUSTICIA REGIÓN II","SEREMI DE MINERÍA REGIÓN II","SEREMI DE OBRAS PÚBLICAS REGIÓN II","SEREMI DE SERVICIOS SOCIALES  REGIÓN II",null,null,"SEREMI DEL TRABAJO Y PREVISIÓN SOCIAL  REGIÓN II","SEREMI DE TRANSPORTES Y TELECOMUNICACIONES  REGIÓN II","SEREMI DE VIVIENDA Y URBANISMO REGIÓN II","SEREMI DE BIENES NACIONALES REGIÓN II","SEREMI DE MEDIO AMBIENTE REGIÓN II",null,null,null,null,null,null,null,"SEREMI DE DEPORTES REGIÓN II"]
["CLÍNICA GERIÁTRICA LIMACHE","DIRECCIÓN REGIONAL DE ATACAMA","GOBERNACIÓN PROVINCIAL ARICA","CONSULTORIO GENERAL URBANO Nº 2 LOS ANDES","HOSPITAL DR. CARLOS CISTERNAS - CALAMA","HOSPITAL DE PURÉN","HOSPITAL DE GALVARINO","HOSPITAL INTERCULTURAL KALLVU LLANKA DE CAÑETE",null,"HOSPITAL DR. JERÓNIMO MÉNDEZ ARANCIBIA - CHAÑARAL","DIRECCIÓN DE SALUD RURAL","HOSPITAL DE LOLOL","HOSPITAL DE MULCHÉN","HOSPITAL DE CASTRO","HOSPITAL CLÍNICO REGIONAL DR. GUILLERMO GRANT BENAVENTE","HOSPITAL DR. JOSÉ ARRAÑO - ANDACOLLO",null,"HOSPITAL DR. MARCO ANTONIO CHAMORRO - PORVENIR","HOSPITAL DE CUREPTO","HOSPITAL DE URGENCIA ASISTENCIA PÚBLICA DR. ALEJANDRO DEL RÍO","HOSPITAL DR. ROBERTO DEL RÍO","HOSPITAL DE CURACAVÍ","HOSPITAL DR. LUIS TISNÉ BROUSSE","HOSPITAL DE SAN LUIS","Hospital Clínico Metropolitano de la Florida",null,"HOSPITAL DE BULNES","HOSPITAL DE PURRANQUE","HOSPITAL CHAITÉN","HOSPITAL PENCO - LIRQUÉN","HOSPITAL DE CORRAL","HOSPITAL DEL SALVADOR - VALPARAÍSO","HOSPITAL DE PETORCA","SEREMI DE SALUD REGIÓN III","SEREMI DE AGRICULTURA REGIÓN III","FUERZA AÉREA DE CHILE","SEREMI DE ECONOMÍA REGIÓN III","SEREMI DE EDUCACIÓN REGIÓN III","SEREMI DE ENERGÍA REGIÓN III","SEREMI DE HACIENDA REGIÓN III","SEREMI DE JUSTICIA REGIÓN III","SEREMI DE MINERÍA REGIÓN III","SEREMI DE OBRAS PÚBLICAS REGIÓN III","SEREMI DE SERVICIOS SOCIALES  REGIÓN III",null,null,"SEREMI DEL TRABAJO Y PREVISIÓN SOCIAL  REGIÓN III","SEREMI DE TRANSPORTES Y TELECOMUNICACIONES  REGIÓN III","SEREMI DE VIVIENDA Y URBANISMO REGIÓN III","SEREMI DE BIENES NACIONALES REGIÓN III","SEREMI DE MEDIO AMBIENTE REGIÓN III",null,null,null,null,null,null,null,"SEREMI DE DEPORTES REGIÓN III"]
["DIRECCIÓN C.SALUD Y REHABILITACIÓN","DIRECCIÓN REGIONAL DE AYSÉN","GOBERNACIÓN PROVINCIAL AYSÉN","CONSULTORIO GENERAL URBANO SAN FELIPE","HOSPITAL LEONARDO GUZMÁN - ANTOFAGASTA","HOSPITAL DR. DINO STAGNO M - TRAIGUÉN","HOSPITAL DE GORBEA","HOSPITAL PROVINCIAL DR. RAFAEL AVARÍA - CURANILAHUE",null,"HOSPITAL DR. MANUEL MAGALLANES MEDLING - HUASCO","HOSPITAL DE PUERTO AYSÉN","HOSPITAL DE MARCHIGÜE","HOSPITAL DE NACIMIENTO","HOSPITAL DE QUEILÉN","HOSPITAL CLORINDA AVELLO - SANTA JUANA","HOSPITAL SAN JUAN DE DIOS - COMBARBALÁ",null,null,"HOSPITAL DE HUALAÑÉ","HOSPITAL EL CARMEN DE MAIPÚ","INSTITUTO NACIONAL DEL CÁNCER DR. CAUPOLICÁN PARDO CORREA","HOSPITAL DE PEÑAFLOR","HOSPITAL HANGA ROA","HOSPITAL DR. EXEQUIEL GONZÁLEZ CORTÉS","HOSPITAL CLÍNICO DRA. ELOÍSA DÍAZ DE LA FLORIDA",null,"HOSPITAL DE COELEMU","HOSPITAL DE RÍO NEGRO","HOSPITAL DE CALBUCO","CESFAM DE LIRQUÉN","HOSPITAL DE LANCO","HOSPITAL DR. EDO. PEREIRA RAMÍREZ - VALPARAÍSO","HOSPITAL DE QUILPUÉ","SEREMI DE SALUD REGIÓN IV","SEREMI DE AGRICULTURA REGIÓN IV",null,"SEREMI DE ECONOMÍA REGIÓN IV","SEREMI DE EDUCACIÓN REGIÓN IV","SEREMI DE ENERGÍA REGIÓN IV","SEREMI DE HACIENDA REGIÓN IV","SEREMI DE JUSTICIA REGIÓN IV","SEREMI DE MINERÍA REGIÓN IV","SEREMI DE OBRAS PÚBLICAS REGIÓN IV","SEREMI DE SERVICIOS SOCIALES  REGIÓN IV",null,null,"SEREMI DEL TRABAJO Y PREVISIÓN SOCIAL  REGIÓN IV","SEREMI DE TRANSPORTES Y TELECOMUNICACIONES  REGIÓN IV","SEREMI DE VIVIENDA Y URBANISMO REGIÓN IV","SEREMI DE BIENES NACIONALES REGIÓN IV","SEREMI DE MEDIO AMBIENTE REGIÓN IV",null,null,null,null,null,null,null,"SEREMI DE DEPORTES REGIÓN IV"]
["UNIDAD DE SALUD MENTAL LA FLORIDA","DIRECCIÓN REGIONAL DE COQUIMBO","GOBERNACIÓN PROVINCIAL BÍO- BÍO","HOSPITAL DE SAN CAMILO - SAN FELIPE","HOSPITAL MARCOS MACUADA - TOCOPILLA","HOSPITAL DR. MAURICIO HEYERMANN - ANGOL","HOSPITAL DE INTERCULTURA - NUEVA IMPERIAL","HOSPITAL SAN VICENTE DE ARAUCO",null,"HOSPITAL SAN JOSÉ DEL CARMEN - COPIAPÓ","HOSPITAL DR. JORGE IBAR - PUERTO CISNES","HOSPITAL DE NANCAGUA","HOSPITAL DE SANTA BÁRBARA","HOSPITAL DE QUELLÓN","HOSPITAL DE FLORIDA","HOSPITAL SAN JUAN DE DIOS - ILLAPEL",null,null,"HOSPITAL DE LICANTÉN",null,"INSTITUTO PSIQUIÁTRICO DR. JOSÉ HORWITZ BARAK","HOSPITAL DR. FÉLIX BULNES CERDA","INST. NAC.DE REHABILITACIÓN INFANTIL PRESIDENTE PEDRO AGUIRRE CERDA","HOSPITAL EL PINO",null,null,"HOSPITAL DE EL CARMEN","HOSPITAL MISIÓN SAN JUAN DE LA COSTA","HOSPITAL DE FRESIA",null,"HOSPITAL DE LOS LAGOS","HOSPITAL SAN JOSÉ - CASABLANCA","HOSPITAL DR. GUSTAVO FRICKE - VIÑA DEL MAR","SEREMI DE SALUD REGIÓN V","SEREMI DE AGRICULTURA REGIÓN V",null,"SEREMI DE ECONOMÍA REGIÓN V","SEREMI DE EDUCACIÓN REGIÓN V","SEREMI DE ENERGÍA REGIÓN V","SEREMI DE HACIENDA REGIÓN V","SEREMI DE JUSTICIA REGIÓN V","SEREMI DE MINERÍA REGIÓN V","SEREMI DE OBRAS PÚBLICAS REGIÓN V","SEREMI DE SERVICIOS SOCIALES  REGIÓN IX",null,null,"SEREMI DEL TRABAJO Y PREVISIÓN SOCIAL  REGIÓN V","SEREMI DE TRANSPORTES Y TELECOMUNICACIONES  REGIÓN V","SEREMI DE VIVIENDA Y URBANISMO REGIÓN V","SEREMI DE BIENES NACIONALES REGIÓN V","SEREMI DE MEDIO AMBIENTE REGIÓN V",null,null,null,null,null,null,null,"SEREMI DE DEPORTES REGIÓN V"]
["UNIDAD DE SALUD TALCAHUANO","DIRECCIÓN REGIONAL DE LA ARAUCANÍA","GOBERNACIÓN PROVINCIAL CACHAPOAL","HOSPITAL PSIQUIÁTRICO DR. PHILIPPE PINEL - PUTAENDO","CENTRO ASISTENCIAL NORTE","HOSPITAL DR. OSCAR HERNÁNDEZ E. - CURACAUTÍN","HOSPITAL DE LONCOCHE",null,null,null,"HOSPITAL DR. LEOPOLDO ORTEGA R. - CHILE CHICO","HOSPITAL DE PICHIDEGUA","HOSPITAL DE YUMBEL",null,"HOSPITAL DE LOTA","HOSPITAL SAN JUAN DE DIOS - LA SERENA",null,null,"HOSPITAL DE MOLINA",null,null,"HOSPITAL SAN JOSÉ - MELIPILLA","INSTITUTO DE NEUROCIRUGÍA DR. ALFONSO ASENJO","HOSPITAL PSIQUIÁTRICO EL PERAL",null,null,"HOSPITAL DE QUIRIHUE","HOSPITAL MISIÓN QUILACAHUÍN","HOSPITAL DE FRUTILLAR",null,"HOSPITAL DE PAILLACO",null,"HOSPITAL DR. MARIO SÁNCHEZ VERGARA - LA CALERA","SEREMI DE SALUD REGIÓN VI","SEREMI DE AGRICULTURA REGIÓN VI",null,"SEREMI DE ECONOMÍA REGIÓN VI","SEREMI DE EDUCACIÓN REGIÓN VI","SEREMI DE ENERGÍA REGIÓN VI","SEREMI DE HACIENDA REGIÓN VI","SEREMI DE JUSTICIA REGIÓN VI","SEREMI DE MINERÍA REGIÓN VI","SEREMI DE OBRAS PÚBLICAS REGIÓN VI","SEREMI DE SERVICIOS SOCIALES  REGIÓN METROPOLITANA",null,null,"SEREMI DEL TRABAJO Y PREVISIÓN SOCIAL  REGIÓN VI","SEREMI DE TRANSPORTES Y TELECOMUNICACIONES  REGIÓN VI","SEREMI DE VIVIENDA Y URBANISMO REGIÓN VI","SEREMI DE BIENES NACIONALES REGIÓN VI","SEREMI DE MEDIO AMBIENTE REGIÓN VI",null,null,null,null,null,null,null,"SEREMI DE DEPORTES REGIÓN VI"]
[null,"DIRECCIÓN REGIONAL DE LOS LAGOS","GOBERNACIÓN PROVINCIAL CAPITÁN PRAT","HOSPITAL SAN ANTONIO - PUTAENDO",null,"HOSPITAL SAN JOSÉ - VICTORIA","HOSPITAL DE PITRUFQUÉN",null,null,null,"HOSPITAL LORD COCHRANE","HOSPITAL DE PICHILEMU","HOSPITAL DR. ROBERTO MUÑOZ URRUTIA DE HUÉPIL",null,"HOSPITAL SAN JOSÉ - CORONEL","HOSPITAL SAN JUAN DE DIOS - VICUÑA",null,null,"HOSPITAL DE TENO",null,null,"HOSPITAL SAN JUAN DE DIOS - SANTIAGO","INSTITUTO NACIONAL DE ENFERMEDADES RESPIRATORIAS Y CIRUGÍA TORÁCICA",null,null,null,"HOSPITAL DE SAN CARLOS",null,"HOSPITAL DE FUTALEUFÚ",null,"HOSPITAL DE RÍO BUENO",null,"HOSPITAL DR. VÍCTOR HUGO MOLL - CABILDO","SEREMI DE SALUD REGIÓN VII","SEREMI DE AGRICULTURA REGIÓN VII",null,"SEREMI DE ECONOMÍA REGIÓN VII","SEREMI DE EDUCACIÓN REGIÓN VII","SEREMI DE ENERGÍA REGIÓN VII","SEREMI DE HACIENDA REGIÓN VII","SEREMI DE JUSTICIA REGIÓN VII","SEREMI DE MINERÍA REGIÓN VII","SEREMI DE OBRAS PÚBLICAS REGIÓN VII","SEREMI DE SERVICIOS SOCIALES  REGIÓN V",null,null,"SEREMI DEL TRABAJO Y PREVISIÓN SOCIAL  REGIÓN VII","SEREMI DE TRANSPORTES Y TELECOMUNICACIONES  REGIÓN VII","SEREMI DE VIVIENDA Y URBANISMO REGIÓN VII","SEREMI DE BIENES NACIONALES REGIÓN VII","SEREMI DE MEDIO AMBIENTE REGIÓN VII",null,null,null,null,null,null,null,"SEREMI DE DEPORTES REGIÓN VII"]
[null,"DIRECCIÓN REGIONAL DE LOS RIOS ","GOBERNACIÓN PROVINCIAL CARDENAL CARO","HOSPITAL SAN FRANCISCO - LLAY-LLAY",null,null,"HOSPITAL DE TOLTÉN",null,null,null,"HOSPITAL REGIONAL COYHAIQUE","HOSPITAL DE SANTA CRUZ",null,null,"HOSPITAL TRAUMATOLÓGICO - CONCEPCIÓN","HOSPITAL SAN PABLO - COQUIMBO",null,null,"HOSPITAL DR. ABEL FUENTEALBA LAGOS - SAN JAVIER",null,null,"INSTITUTO TRAUMATOLÓGICO DR. TEODORO GEBAUER","INSTITUTO NACIONAL GERIÁTRICO PRESIDENTE EDUARDO FREI MONTALVA",null,null,null,"HOSPITAL DR. PEDRO MORALES - YUNGAY",null,"HOSPITAL DE LLANQUIHUE",null,"HOSPITAL JUAN MOREY - LA UNIÓN",null,"HOSPITAL JUANA ROSS DE EDWARDS - PEÑABLANCA","SEREMI DE SALUD REGIÓN VIII","SEREMI DE AGRICULTURA REGIÓN VIII",null,"SEREMI DE ECONOMÍA REGIÓN VIII","SEREMI DE EDUCACIÓN REGIÓN VIII","SEREMI DE ENERGÍA REGIÓN VIII","SEREMI DE HACIENDA REGIÓN VIII","SEREMI DE JUSTICIA REGIÓN VIII","SEREMI DE MINERÍA REGIÓN VIII","SEREMI DE OBRAS PÚBLICAS REGIÓN VIII","SEREMI DE SERVICIOS SOCIALES  REGIÓN VI",null,null,"SEREMI DEL TRABAJO Y PREVISIÓN SOCIAL  REGIÓN VIII","SEREMI DE TRANSPORTES Y TELECOMUNICACIONES  REGIÓN VIII","SEREMI DE VIVIENDA Y URBANISMO REGIÓN VIII","SEREMI DE BIENES NACIONALES REGIÓN VIII","SEREMI DE MEDIO AMBIENTE REGIÓN VIII",null,null,null,null,null,null,null,"SEREMI DE DEPORTES REGIÓN VIII"]
[null,"DIRECCIÓN REGIONAL DE MAGALLANES","GOBERNACIÓN PROVINCIAL CAUQUENES","HOSPITAL SAN JUAN DE DIOS - LOS ANDES",null,null,"HOSPITAL DE VILCÚN",null,null,null,null,"HOSPITAL DEL SALVADOR - PEUMO",null,null,null,"HOSPITAL SAN PEDRO DE LOS VILOS",null,null,"HOSPITAL DR. BENJAMÍN PEDREROS - CHANCO",null,null,null,null,null,null,null,null,null,"HOSPITAL DE MAULLÍN",null,"HOSPITAL SANTA ELISA DE SAN JOSÉ DE LA MARIQUINA",null,"HOSPITAL SAN AGUSTÍN","SEREMI DE SALUD REGIÓN IX","SEREMI DE AGRICULTURA REGIÓN IX",null,"SEREMI DE ECONOMÍA REGIÓN IX","SEREMI DE EDUCACIÓN REGIÓN IX","SEREMI DE ENERGÍA REGIÓN IX","SEREMI DE HACIENDA REGIÓN IX","SEREMI DE JUSTICIA REGIÓN IX","SEREMI DE MINERÍA REGIÓN IX","SEREMI DE OBRAS PÚBLICAS REGIÓN IX","SEREMI DE SERVICIOS SOCIALES  REGIÓN VII",null,null,"SEREMI DEL TRABAJO Y PREVISIÓN SOCIAL  REGIÓN IX","SEREMI DE TRANSPORTES Y TELECOMUNICACIONES  REGIÓN IX","SEREMI DE VIVIENDA Y URBANISMO REGIÓN IX","SEREMI DE BIENES NACIONALES REGIÓN IX","SEREMI DE MEDIO AMBIENTE REGIÓN IX",null,null,null,null,null,null,null,"SEREMI DE DEPORTES REGIÓN IX"]
[null,"DIRECCIÓN REGIONAL DE O'HIGGINS","GOBERNACIÓN PROVINCIAL CAUTÍN",null,null,null,"HOSPITAL DE VILLARRICA",null,null,null,null,"HOSPITAL DR. RICARDO VALENZUELA SÁEZ - RENGO",null,null,null,null,null,null,"HOSPITAL DR. CÉSAR GARAVAGNO BUROTTO - TALCA",null,null,null,null,null,null,null,null,null,"HOSPITAL DE PALENA",null,null,null,"HOSPITAL SAN MARTÍN - QUILLOTA","SEREMI DE SALUD REGIÓN X","SEREMI DE AGRICULTURA REGIÓN X",null,"SEREMI DE ECONOMÍA REGIÓN X","SEREMI DE EDUCACIÓN REGIÓN X","SEREMI DE ENERGÍA REGIÓN X","SEREMI DE HACIENDA REGIÓN X","SEREMI DE JUSTICIA REGIÓN X","SEREMI DE MINERÍA REGIÓN X","SEREMI DE OBRAS PÚBLICAS REGIÓN X","SEREMI DE SERVICIOS SOCIALES  REGIÓN VIII",null,null,"SEREMI DEL TRABAJO Y PREVISIÓN SOCIAL  REGIÓN X","SEREMI DE TRANSPORTES Y TELECOMUNICACIONES  REGIÓN X","SEREMI DE VIVIENDA Y URBANISMO REGIÓN X","SEREMI DE BIENES NACIONALES REGIÓN X","SEREMI DE MEDIO AMBIENTE REGIÓN X",null,null,null,null,null,null,null,"SEREMI DE DEPORTES REGIÓN X"]
[null,"DIRECCIÓN REGIONAL DE TARAPACÁ","GOBERNACIÓN PROVINCIAL CHACABUCO",null,null,null,"HOSPITAL DR. ABRAHAM GODOY - LAUTARO",null,null,null,null,"HOSPITAL MERCEDES - CHIMBARONGO",null,null,null,null,null,null,"HOSPITAL SAN JOSÉ - PARRAL",null,null,null,null,null,null,null,null,null,"HOSPITAL DE PUERTO MONTT",null,null,null,"HOSPITAL SANTO TOMÁS - LIMACHE","SEREMI DE SALUD REGIÓN XI","SEREMI DE AGRICULTURA REGIÓN XI",null,"SEREMI DE ECONOMÍA REGIÓN XI","SEREMI DE EDUCACIÓN REGIÓN XI","SEREMI DE ENERGÍA REGIÓN XI","SEREMI DE HACIENDA REGIÓN XI","SEREMI DE JUSTICIA REGIÓN XI","SEREMI DE MINERÍA REGIÓN XI","SEREMI DE OBRAS PÚBLICAS REGIÓN XI","SEREMI DE SERVICIOS SOCIALES  REGIÓN X",null,null,"SEREMI DEL TRABAJO Y PREVISIÓN SOCIAL  REGIÓN XI","SEREMI DE TRANSPORTES Y TELECOMUNICACIONES  REGIÓN XI","SEREMI DE VIVIENDA Y URBANISMO REGIÓN XI","SEREMI DE BIENES NACIONALES REGIÓN XI","SEREMI DE MEDIO AMBIENTE REGIÓN XI",null,null,null,null,null,null,null,"SEREMI DE DEPORTES REGIÓN XI"]
[null,"DIRECCIÓN REGIONAL DE VALPARAÍSO","GOBERNACIÓN PROVINCIAL CHAÑARAL",null,null,null,"HOSPITAL DR. ARTURO HILLERNS LARRAÑAGA - SAAVEDRA",null,null,null,null,"HOSPITAL REGIONAL LIBERTADOR BERNARDO O’HIGGINS",null,null,null,null,null,null,"HOSPITAL SAN JUAN DE DIOS - CAUQUENES",null,null,null,null,null,null,null,null,null,null,null,null,null,null,"SEREMI DE SALUD REGIÓN XII","SEREMI DE AGRICULTURA REGIÓN XII",null,"SEREMI DE ECONOMÍA REGIÓN XII","SEREMI DE EDUCACIÓN REGIÓN XII","SEREMI DE ENERGÍA REGIÓN XII","SEREMI DE HACIENDA REGIÓN XII","SEREMI DE JUSTICIA REGIÓN XII","SEREMI DE MINERÍA REGIÓN XII","SEREMI DE OBRAS PÚBLICAS REGIÓN XII","SEREMI DE SERVICIOS SOCIALES  REGIÓN XI",null,null,"SEREMI DEL TRABAJO Y PREVISIÓN SOCIAL  REGIÓN XII","SEREMI DE TRANSPORTES Y TELECOMUNICACIONES  REGIÓN XII","SEREMI DE VIVIENDA Y URBANISMO REGIÓN XII","SEREMI DE BIENES NACIONALES REGIÓN XII","SEREMI DE MEDIO AMBIENTE REGIÓN XII",null,null,null,null,null,null,null,"SEREMI DE DEPORTES REGIÓN XII"]
[null,"DIRECCIÓN REGIONAL DEL BIO BÍO","GOBERNACIÓN PROVINCIAL CHILOÉ",null,null,null,"HOSPITAL DR. EDUARDO GONZÁLEZ GALENO - CUNCO",null,null,null,null,"HOSPITAL SAN JUAN DE DIOS - SAN FERNANDO",null,null,null,null,null,null,"HOSPITAL SAN JUAN DE DIOS DE CURICÓ",null,null,null,null,null,null,null,null,null,null,null,null,null,null,"SEREMI DE SALUD REGIÓN XIV","SEREMI DE AGRICULTURA REGIÓN XIV",null,"SEREMI DE ECONOMÍA REGIÓN XIV","SEREMI DE EDUCACIÓN REGIÓN XIV","SEREMI DE ENERGÍA REGIÓN XIV","SEREMI DE HACIENDA REGIÓN XIV","SEREMI DE JUSTICIA REGIÓN XIV","SEREMI DE MINERÍA REGIÓN XIV","SEREMI DE OBRAS PÚBLICAS REGIÓN XIV","SEREMI DE SERVICIOS SOCIALES  REGIÓN XII",null,null,"SEREMI DEL TRABAJO Y PREVISIÓN SOCIAL  REGIÓN XIV","SEREMI DE TRANSPORTES Y TELECOMUNICACIONES  REGIÓN XIV","SEREMI DE VIVIENDA Y URBANISMO REGIÓN XIV","SEREMI DE BIENES NACIONALES REGIÓN XIV","SEREMI DE MEDIO AMBIENTE REGIÓN XIV",null,null,null,null,null,null,null,"SEREMI DE DEPORTES REGIÓN XIV"]
[null,"DIRECCIÓN REGIONAL DEL MAULE","GOBERNACIÓN PROVINCIAL CHOAPA",null,null,null,"HOSPITAL DR. HERNÁN HENRÍQUEZ ARAVENA - TEMUCO",null,null,null,null,"HOSPITAL SAN VICENTE DE TAGUA-TAGUA",null,null,null,null,null,null,null,null,null,null,null,null,null,null,null,null,null,null,null,null,null,"SEREMI DE SALUD REGIÓN XV","SEREMI DE AGRICULTURA REGIÓN XV",null,"SEREMI DE ECONOMÍA REGIÓN XV","SEREMI DE EDUCACIÓN REGIÓN XV","SEREMI DE ENERGÍA REGIÓN XV","SEREMI DE HACIENDA REGIÓN XV","SEREMI DE JUSTICIA REGIÓN XV","SEREMI DE MINERÍA REGIÓN XV","SEREMI DE OBRAS PÚBLICAS REGIÓN XV","SEREMI DE SERVICIOS SOCIALES  REGIÓN XIV",null,null,"SEREMI DEL TRABAJO Y PREVISIÓN SOCIAL  REGIÓN XV","SEREMI DE TRANSPORTES Y TELECOMUNICACIONES  REGIÓN XV","SEREMI DE VIVIENDA Y URBANISMO REGIÓN XV","SEREMI DE BIENES NACIONALES REGIÓN XV","SEREMI DE MEDIO AMBIENTE REGIÓN XV",null,null,null,null,null,null,null,"SEREMI DE DEPORTES REGIÓN XV"]
[null,"OFICINA LOCAL ARAUCO ","GOBERNACIÓN PROVINCIAL COLCHAGUA",null,null,null,null,null,null,null,null,"HOSPITAL SANTA FILOMENA - GRANEROS",null,null,null,null,null,null,null,null,null,null,null,null,null,null,null,null,null,null,null,null,null,"SEREMI DE SALUD REGIÓN METROPOLITANA","SEREMI DE AGRICULTURA REGIÓN METROPOLITANA",null,"SEREMI DE ECONOMÍA REGIÓN METROPOLITANA","SEREMI DE EDUCACIÓN REGIÓN METROPOLITANA","SEREMI DE ENERGÍA REGIÓN METROPOLITANA","SEREMI DE HACIENDA REGIÓN METROPOLITANA","SEREMI DE JUSTICIA REGIÓN METROPOLITANA","SEREMI DE MINERÍA REGIÓN METROPOLITANA","SEREMI DE OBRAS PÚBLICAS REGIÓN METROPOLITANA","SEREMI DE SERVICIOS SOCIALES  REGIÓN XV",null,null,"SEREMI DEL TRABAJO Y PREVISIÓN SOCIAL  REGIÓN METROPOLITANA","SEREMI DE TRANSPORTES Y TELECOMUNICACIONES  REGIÓN METROPOLITANA","SEREMI DE VIVIENDA Y URBANISMO REGIÓN METROPOLITANA","SEREMI  DE BIENES NACIONALES REGIÓN METROPOLITANA","SEREMI DE MEDIO AMBIENTE REGIÓN METROPOLITANA",null,null,null,null,null,null,null,"SEREMI DE DEPORTES REGIÓN METROPOLITANA"]
[null,"OFICINA LOCAL DE CHILLÁN","GOBERNACIÓN PROVINCIAL CONCEPCIÓN"]
[null,"OFICINA LOCAL DE CHILOÉ","GOBERNACIÓN PROVINCIAL COPIAPÓ"]
[null,"OFICINA LOCAL DE ISLA DE PASCUA","GOBERNACIÓN PROVINCIAL CORDILLERA"]
[null,"OFICINA LOCAL DE LA UNIÓN ","GOBERNACIÓN PROVINCIAL COYHAIQUE"]
[{"$f":"UPPER(A66)","v":""},"OFICINA LOCAL DE LOS ANGELES ","GOBERNACIÓN PROVINCIAL CURICÓ"]
[{"$f":"UPPER(A67)","v":""},"OFICINA LOCAL DE OSORNO","GOBERNACIÓN PROVINCIAL EL LOA"]
[{"$f":"UPPER(A68)","v":""},"OFICINA LOCAL DE PALENA ","GOBERNACIÓN PROVINCIAL ELQUI"]
[{"$f":"UPPER(A69)","v":""},"OFICINA LOCAL DE PUERTO NATALES","GOBERNACIÓN PROVINCIAL GENERAL CARRERA"]
[null,"OFICINA LOCAL DE SAN PEDRO DE ATACAMA ","GOBERNACIÓN PROVINCIAL HUASCO"]
[null,null,"GOBERNACIÓN PROVINCIAL IQUIQUE"]
[null,null,"GOBERNACIÓN PROVINCIAL ISLA DE PASCUA"]
[null,null,"GOBERNACIÓN PROVINCIAL LIMARÍ"]
[null,null,"GOBERNACIÓN PROVINCIAL LINARES"]
[null,null,"GOBERNACIÓN PROVINCIAL LLANQUIHUE"]
[null,null,"GOBERNACIÓN PROVINCIAL LOS ANDES"]
[null,null,"GOBERNACIÓN PROVINCIAL MAGALLANES"]
[null,null,"GOBERNACIÓN PROVINCIAL MAIPO"]
[null,null,"GOBERNACIÓN PROVINCIAL MALLECO"]
[null,null,"GOBERNACIÓN PROVINCIAL MARGA MARGA"]
[null,null,"GOBERNACIÓN PROVINCIAL MELIPILLA"]
[null,null,"GOBERNACIÓN PROVINCIAL ÑUBLE"]
[null,null,"GOBERNACIÓN PROVINCIAL OSORNO"]
[null,null,"GOBERNACIÓN PROVINCIAL PALENA"]
[null,null,"GOBERNACIÓN PROVINCIAL PARINACOTA"]
[null,null,"GOBERNACIÓN PROVINCIAL PETORCA"]
[null,null,"GOBERNACIÓN PROVINCIAL QUILLOTA"]
[null,null,"GOBERNACIÓN PROVINCIAL RANCO"]
[null,null,"GOBERNACIÓN PROVINCIAL SAN ANTONIO"]
[null,null,"GOBERNACIÓN PROVINCIAL SAN FELIPE"]
[null,null,"GOBERNACIÓN PROVINCIAL TALAGANTE"]
[null,null,"GOBERNACIÓN PROVINCIAL TALCA"]
[null,null,"GOBERNACIÓN PROVINCIAL TAMARUGAL"]
[null,null,"GOBERNACIÓN PROVINCIAL TIERRA DEL FUEGO"]
[null,null,"GOBERNACIÓN PROVINCIAL TOCOPILLA"]
[null,null,"GOBERNACIÓN PROVINCIAL ÚLTIMA ESPERANZA"]
[null,null,"GOBERNACIÓN PROVINCIAL VALDIVIA"]
[null,null,"GOBERNACIÓN PROVINCIAL VALPARAÍSO"]
[null,null,"INTENDENCIA REGIONAL ANTOFAGASTA"]
[null,null,"INTENDENCIA REGIONAL ARICA PARINACOTA"]
[null,null,"INTENDENCIA REGIONAL ATACAMA"]
[null,null,"INTENDENCIA REGIONAL AYSÉN"]
[null,null,"INTENDENCIA REGIONAL BÍO BÍO"]
[null,null,"INTENDENCIA REGIONAL COQUIMBO"]
[null,null,"INTENDENCIA REGIONAL LA ARAUCANÍA"]
[null,null,"INTENDENCIA REGIONAL LIBERTADOR B. O´HIGGINS"]
[null,null,"INTENDENCIA REGIONAL LOS LAGOS"]
[null,null,"INTENDENCIA REGIONAL LOS RÍOS"]
[null,null,"INTENDENCIA REGIONAL MAGALLANES Y LA ANTÁRTICA"]
[null,null,"INTENDENCIA REGIONAL MAULE"]
[null,null,"INTENDENCIA REGIONAL METROPOLITANA"]
[null,null,"INTENDENCIA REGIONAL TARAPACÁ"]
[null,null,"INTENDENCIA REGIONAL VALPARAÍSO"]
[]
[]
[]
[]
[]
[]
[]
[]
[]
[]
[]
[]
[]
[]
[]
[]
[]
[]
[]
[]
[]
[]
[]
[]
[]
[]
[]
[]
[]
[]
[]
[]
[]
[]
[]
[]
[]
[]
[]
[]
[]
[]
[]
[]
[]
[]
[]
[]
[]
[]
[]
[]
[]
[]
[]
[]
[]
[]
[]
[]
[]
[]
[]
[]
[]
[]
[]
[]
[]
[]
[]
[]
[]
[]
[]
[]
[]
[]
[]
[]
[]
[]
[]
[]
[]
[]
[]
[]
[]
[]
[]
[]
[]
[]
[]
[]
[]
[]
[]
[]
[]
[]
[]
[]
[]
[]
[]
[]
[]
[]
[]
[]
[]
[]
[]
[]
[]
[]
[]
[]
[]
[]
[]
[]
[]
[]
[]
[]
[]
[]
[]
[]
[]
[]
[]
[]
[]
[]
[]
[]
[]
[]
[]
[]
[]
[]
[]
[]
[]
[]
[]
[]
[]
[]
[]
[]
[]
[]
[]
[]
[]
[]
[]
[]
[]
[null,null,{"$f":"UPPER(C214)","v":""}]

{"sheet":"formato_resumen","index":13,"n_rows":47,"n_cols":15,"rows_kept":47,"cut":false,"hidden":true,"merged":[[26,1,26,10],[1,1,1,10],[3,2,3,5],[3,7,3,10],[4,2,4,5],[4,7,4,10],[5,2,5,5],[5,7,5,10],[6,2,6,5],[6,7,6,10],[8,1,8,14],[14,1,14,12],[20,1,20,14],[46,6,46,9],[33,1,33,14],[39,1,39,9],[40,1,40,2],[40,3,40,9],[41,1,41,2],[41,3,41,9],[42,1,42,2],[42,3,42,9],[43,1,43,2],[43,3,43,9],[45,6,45,9]]}
[]
[null,"Plan Anual de Auditoría "]
[]
[null,"Ministerio: ",null,null,null,null,"Año planificado"]
[null,"Servicio:",null,null,null,null,"Versión"]
[null,"Servicio dependiente",null,null,null,null,"Fecha de Emisión:"]
[null,"Región:",null,null,null,null,"Código del Plan Anual de Auditoría:"]
[]
[null,"1.- Trabajos de Aseguramiento Priorizadas en Análisis de Riesgos"]
[null,"Codigo Trabajo","Nombre Trabajo ","Tipo de Trabajo","Objetivo General del Trabajo","Proceso Transversal en el Estado ","Alcance General","Frecuencia","Riesgos Críticos Globales","Equipo de Auditoría","Horas de Auditoría","Mes Inicio","Mes Termino","Cantidad de Informes","\nFecha estimada de envío del Informe\n"]
[]
[]
[]
[]
[null,"2.- Trabajos de Consultoría"]
[null,"Codigo Trabajo","Nombre Trabajo ","Objetivo General de Consultoría","Tipo de trabajo","Proceso Transversal en el Estado ","Frecuencia","Equipo de Auditoría","Horas de Auditoría","Mes Inicio","Mes Termino","Cantidad de Informes","\nFecha estimada de envío del Informe\n"]
[]
[]
[]
[]
[null,"3.- Trabajos de Seguimiento"]
[null,"Codigo Trabajo","Nombre Trabajo ","Tipo de Trabajo","Objetivo de Auditoría General del Trabajo","Materia de Seguimiento","Proceso Transversal en el Estado ","Frecuencia","Incluye anexo con Compromisos Pendientes de implementar","Equipo de Auditoría","Horas de Auditoria","Mes Inicio","Mes Termino","Cantidad de Informes","\nFecha estimada de envío del Informe\n"]
[]
[]
[]
[]
[null,"4.- Trabajos Rutinarios y Obligatorios por Normativa"]
[null,"Codigo Trabajo","Nombre Trabajo ","Tipo de Trabajo","Objetivo de Auditoría General del Trabajo","Proceso Transversal en el Estado ","Frecuencia","Equipo de Auditoría","Horas de Auditoría","Mes Inicio","Mes Termino"]
[]
[]
[]
[]
[]
[null,"5.- Trabajos Solicitados por la Dirección"]
[null,"Codigo Trabajo","Nombre Trabajo ","Clasificación del trabajo ","Tipo de trabajo","Objetivo General de Auditoría","Proceso Transversal en el Estado ","Frecuencia","Riesgos Críticos Globales","Equipo de Auditoría","Horas de Auditoría","Mes Inicio","Mes Termino","Cantidad de Informes","\nFecha estimada de envío del Informe\n"]
[]
[]
[]
[]
[null,"6.- Resumen de horas estimadas"]
[null,"Cantidad Horas disponibles año 201X"]
[null,"Horas estimadas para Capacitación"]
[null,"Horas estimadas para Trabajos planificados"]
[null,"Horas estimadas para Trabajos no  planificados"]
[]
[null,"Formulado Por:",null,"Revisado/Validado por Jefe de Auditoría Interna",null,"Aprobación del Jefe Superior del Servicio"]
[null,"Fecha",null,"Fecha",null,"Fecha"]